Cogmind - Beta 17.1 @@@ ROGUE MODE // 2026.09.19 @ 05:15:30 Player: KURIIRI Result: Fortifying 0b10! Performance ------------- Evolutions (9) 4500 Regions Visited (30) 6000 Robots Destroyed (894) 4470 Value Destroyed (54336) 54336 Prototype IDs (90) 1800 Alien Tech Used (1) 200 Bonus (76967) 76967 TOTAL SCORE: 148273 Bonus ------- Triggered High Security 1500 High Alert Combat Kills 18956 Follower Combat Kills 2620 Prayed to X0-1V1 5000 Major X0-1V1 Interference 23950 Entered Garrisons 1600 Used RIF Installer 4500 Network Hubs Disabled 200 Met R17 at Cetus 500 Hacked Protovariant 500 Met R17 at Research 2000 Scanned by Researcher 500 Met Sigix 2000 Destroyed MAIN.C Guards 500 Met MAIN.C 5000 Destroyed MAIN.C Shell 5000 Win 3000 Friendly Fire -359 Cogmind --------- Core Integrity 1628/1850 Matter 665/1200 Energy 1566/2400 System Corruption 8% Temperature Hot (224) Movement Walking (75) Location By MAIN.C's Side Parts ------- > --- POWER (3) -------- Singularity Reactor > --- PROPULSION (5) --- Biometal Exoskeleton > --- UTILITY (13) ----- Armored Scrap Engine Experimental Heat Sink High-capacity Storage Unit Advanced Targeting Computer Experimental Targeting Computer Experimental Core Analyzer Experimental Core Analyzer Advanced Kinecellerator Advanced Weapon Cycler Centrium Heavy Armor Plating Improved Remote Force Field > --- WEAPON (5) ------- Hvy. Ballistic Graviton Construct/C > --- INVENTORY (20) --- Advanced Heavy Treads Experimental Power Amplifier Experimental Cooling System Experimental Matter Compressor (500) Advanced Weapon Cycler Centrium Medium Armor Plating Centrium Medium Armor Plating Experimental Focal Shield Experimental EM Shield Improved Point Defense System Relay Coupler [Behemoth] (16) Peak State ------------ > --- POWER ------------ Multi-Quantum Reactor > --- PROPULSION ------- Biometal Exoskeleton > --- UTILITY ---------- Armored Scrap Engine Experimental Cooling System Coolant Network High-capacity Storage Unit Advanced Targeting Computer Experimental Targeting Computer Improved Armor Integrity Analyzer Advanced Weapon Cycler Experimental Core Shielding Centrium Heavy Armor Plating > --- WEAPON ----------- Chaos Jack Hvy. Ballistic Graviton Construct/C > --- INVENTORY -------- Singularity Reactor Advanced Heavy Treads Experimental Power Amplifier Advanced Cryofiber Web Experimental Cooling System Improved Matter Compressor Experimental Matter Compressor Advanced Kinecellerator Advanced Weapon Cycler Experimental Focal Shield Experimental EM Shield Improved Point Defense System Relay Coupler [Behemoth] Heavy Hardcell Cannon Graviton Cannon Advanced Remote Datajack [Rating: 227] Favorites ----------- Power Constructs Engine Light Ion Engine Power Core Micro Nuclear Core Reactor Constructs Propulsion Constructs Treads Light Treads Leg Constructs Wheel Wheel Flight Unit VTOL Module Utility Armored Scrap Engine Device Armored Scrap Engine Storage High-capacity Storage Unit Processor Experimental Targeting Computer Hackware Relay Coupler [NC] Protection Centrium Heavy Armor Plating Artifact Phase Redirector Weapon Constructs Energy Gun Medium Laser Energy Cannon Advanced Beam Cannon Ballistic Gun Assault Rifle Ballistic Cannon Constructs Launcher Grenade Launcher Special Weapon Improved Remote Datajack Impact Weapon Maul Special Melee Weapon Chaos Jack Build | -11 -10 -9 -9 -9 -9 -7 -7 -7 -7 -6 -6 -5 -5 -5 -5 -5 -5 -5 -5 -4 -4 -4 -4 -3 -3 -2 -2 -2 -1 -1 ------- Run | Yrd Mat Mat Sto Gar Rec Fac Gar Fac Gar Fac Gar Fac Was Fac Ext Cet Arc Hub Gar Fac Gar Fac Gar Res Tes Res Qua Gar Acc Com Slots Evolved 18 | . . 2 . . . 4 . . . 2 . 2 . . . . . . . 2 . . . 2 . 2 . . 2 . Power 2 | . . . . . . 1 . . . . . . . . . . . . . . . . . . . 1 . . . . Propulsion 2 | . . 1 . . . 1 . . . . . . . . . . . . . . . . . . . . . . . . Utility 11 | . . . . . . 2 . . . 1 . 2 . . . . . . . 1 . . . 2 . 1 . . 2 . Weapon 3 | . . 1 . . . . . . . 1 . . . . . . . . . 1 . . . . . . . . . . Parts Attached 226 | 4 10 13 8 9 3 2 8 5 2 7 5 7 1 7 2 3 2 7 7 4 8 17 9 13 25 5 6 5 3 19 Power 5 | . 1 2 . 1 . . . . . . . . . . . . . . . . . . . . . . . . . 1 Engine 3 | . 1 2 . . . . . . . . . . . . . . . . . . . . . . . . . . . . Core 1 | . . . . 1 . . . . . . . . . . . . . . . . . . . . . . . . . . Reactor 1 | . . . . . . . . . . . . . . . . . . . . . . . . . . . . . . 1 Propulsion 15 | 2 4 1 4 4 . . . . . . . . . . . . . . . . . . . . . . . . . . Treads 13 | 2 2 1 4 4 . . . . . . . . . . . . . . . . . . . . . . . . . . Leg . | . . . . . . . . . . . . . . . . . . . . . . . . . . . . . . . Wheel 2 | . 2 . . . . . . . . . . . . . . . . . . . . . . . . . . . . . Hover . | . . . . . . . . . . . . . . . . . . . . . . . . . . . . . . . Flight . | . . . . . . . . . . . . . . . . . . . . . . . . . . . . . . . Utility 155 | 1 3 2 2 1 3 . 8 5 . 6 4 3 1 7 2 . 2 7 6 4 7 12 7 11 15 5 6 4 3 18 Device 78 | 1 1 2 1 1 3 . 1 1 . 1 2 2 1 4 . . 2 5 3 2 3 7 3 7 8 4 2 1 . 10 Storage 12 | . 2 . 1 . . . 1 1 . . . . . . . . . . . 1 1 . 1 . 1 . 1 . . 2 Processor 17 | . . . . . . . . . . . . . . 2 . . . 1 2 1 . 1 . 2 2 1 1 . 2 2 Hackware 40 | . . . . . . . 4 3 . 5 2 1 . 1 2 . . 1 1 . 3 4 3 1 3 . 1 3 1 1 Protection 7 | . . . . . . . 2 . . . . . . . . . . . . . . . . 1 1 . . . . 3 Artifact 1 | . . . . . . . . . . . . . . . . . . . . . . . . . . . 1 . . . Weapon 51 | 1 2 8 2 3 . 2 . . 2 1 1 4 . . . 3 . . 1 . 1 5 2 2 10 . . 1 . . Energy Gun 8 | 1 . 3 . . . . . . . . . . . . . 1 . . 1 . . 1 . . 1 . . . . . Energy Cannon 10 | . . 3 . 1 . . . . 1 . 1 1 . . . . . . . . . . . 1 2 . . . . . Ballistic Gun 10 | . . 1 1 . . . . . . . . 1 . . . 1 . . . . . 1 . . 4 . . 1 . . Ballistic Cannon 5 | . . 1 . . . 1 . . . . . . . . . . . . . . 1 1 . . 1 . . . . . Launcher 7 | . 2 . . 2 . . . . 1 . . . . . . . . . . . . 1 . . 1 . . . . . Special Weapon 10 | . . . . . . 1 . . . 1 . 2 . . . 1 . . . . . 1 2 1 1 . . . . . Impact Weapon 1 | . . . 1 . . . . . . . . . . . . . . . . . . . . . . . . . . . Slashing Weapon . | . . . . . . . . . . . . . . . . . . . . . . . . . . . . . . . Piercing Weapon . | . . . . . . . . . . . . . . . . . . . . . . . . . . . . . . . Special Melee Weapon . | . . . . . . . . . . . . . . . . . . . . . . . . . . . . . . . Unidentified Prototypes 45 | . 1 2 1 . 1 . . . . . . . . 2 . 2 . 2 . . 1 5 . 5 8 2 4 . . 9 Corrupted Parts 5 | . . . . . . . . . . . . . . . . . 1 . . . . . 1 . 1 . . . . 2 System Corruption 32 | . . . . . . . . . . . . . . . . . 9 . . . . . 7 . 10 . . . . 6 Parts Lost 33 | . 1 1 . 3 . . 2 . . 1 2 1 . . . . . 4 2 . 1 2 3 4 1 1 . . . 4 Power 3 | . 1 . . 1 . . . . . . . . . . . . . . . . . . . 1 . . . . . . Propulsion 2 | . . . . 2 . . . . . . . . . . . . . . . . . . . . . . . . . . Utility 20 | . . . . . . . . . . 1 2 1 . . . . . 3 2 . 1 1 1 2 1 1 . . . 4 Weapon 8 | . . 1 . . . . 2 . . . . . . . . . . 1 . . . 1 2 1 . . . . . . Highest Loss Streak 2 | . 1 1 . 2 . . 2 . . 1 1 1 . . . . . 2 1 . 1 1 1 1 1 1 . . . 2 To Critical Strikes . | . . . . . . . . . . . . . . . . . . . . . . . . . . . . . . . Average Backups 15 | 4 9 13 14 17 6 8 14 14 14 12 16 17 17 15 15 13 15 14 14 19 21 22 22 22 20 17 19 17 17 14 Power . | 1 . . . . . . . . . . . . . . . . . . . 3 2 2 2 . . . . . . . Propulsion 2 | 2 4 6 5 4 1 . 1 2 1 2 2 2 3 2 2 2 2 1 1 2 2 2 2 2 4 3 3 3 4 2 Utility 7 | . . 1 . 3 1 2 4 5 7 7 10 9 9 8 7 6 8 7 6 6 9 10 14 15 11 9 14 13 11 10 Weapon 4 | 1 4 6 8 9 2 5 7 6 4 3 2 4 4 3 3 4 4 3 5 7 7 6 2 2 4 3 1 . 1 . Tool/Special . | . . . . . . . . . . . . . . . . . . . . . . . . . . . . . . . Unused Backups 117 | . 2 3 . 3 16 4 9 1 6 1 4 . . 8 . . . 2 1 1 2 7 6 12 5 2 4 3 1 14 Power 4 | . . . . . . . . . . . . . . . . . . . . . 1 . . 2 . . 1 . . . Propulsion 24 | . . 1 . 1 5 . . . 1 . 1 . . 2 . . . 1 . . . . . 5 . 1 1 . . 5 Utility 43 | . 2 1 . . 3 . 1 . 2 . 2 . . 5 . . . . . . . 4 5 5 2 . 1 3 1 6 Weapon 44 | . . 1 . 2 8 4 8 1 3 1 1 . . 1 . . . 1 1 1 1 2 1 . 3 1 1 . . 2 Tool/Special 2 | . . . . . . . . . . . . . . . . . . . . . . 1 . . . . . . . 1 Average Slot Usage (%) 60 | . 99 96 100 99 78 47 49 49 48 49 48 53 54 54 53 55 55 53 53 48 50 55 51 57 56 53 54 53 55 51 Engine 1 | . 13 11 10 3 . . . . 2 . . 4 2 . . . . . . . . . . . . . . . . . Core 2 | . . . . 6 9 7 6 . 2 6 2 . 2 3 . . . 1 3 . . . . . . 1 . . . . Reactor 2 | . . . . . . . . 6 2 . 3 . . 1 5 5 5 3 1 5 4 4 5 3 3 2 4 4 3 3 Treads 7 | . 27 31 38 39 29 4 1 . . . 3 . . 1 5 5 5 5 3 . . . . . . 1 . . . . Leg 1 | . . . . . . . 5 . . 5 2 5 5 3 . . . . . . . 2 2 . 3 . . . . 1 Device 15 | . 14 11 10 10 9 12 12 13 14 16 10 15 15 11 15 16 16 13 18 18 19 17 16 18 22 24 22 23 23 17 Storage 5 | . 14 11 10 10 1 7 7 7 7 6 6 5 5 5 5 5 5 5 5 5 5 5 5 4 4 4 4 4 3 3 Processor 4 | . . . . . . . . . . . . . . 4 5 5 5 4 4 5 5 7 10 12 9 7 8 5 9 13 Hackware 2 | . . . . . . . . . . 1 5 9 11 10 3 5 5 8 2 . . 3 1 3 1 . 1 4 3 . Energy Cannon 6 | . . 4 30 29 28 7 3 6 4 . 3 . . 3 5 . . . 3 5 5 3 2 . 1 1 . . . 1 Ballistic Cannon 2 | . . 5 . . . 3 6 . 4 6 5 5 5 1 . 4 5 5 1 . . 1 3 3 2 2 4 4 3 2 Special Weapon 2 | . . . . . . . 1 7 . 5 2 4 5 5 5 4 5 3 3 5 5 4 2 3 1 3 4 3 3 . Peak Build Rating 227 | 7 20 29 21 26 44 58 87 99 92 93 108 118 117 127 135 134 133 136 159 160 171 164 162 186 196 200 207 207 213 227 Average Rating 114 | 6 9 24 20 23 24 52 75 90 88 90 92 113 114 119 127 129 132 131 138 157 155 153 150 173 184 183 199 200 212 213 On Entrance 111 | 6 7 20 19 21 26 44 57 86 92 88 90 106 108 117 126 129 131 128 132 147 160 149 145 161 172 159 200 201 204 213 Avg Prop Armor Cover (%) 10 | . . 10 . . . . . . . . . . . . . . . . . . . . . . . . . . . . Naked Turns . | . . . . . . . . . . . . . . . . . . . . . . . . . . . . . . . Heaviest Build 204 | 13 29 40 61 61 59 43 86 89 97 95 91 80 83 103 104 119 117 117 134 157 169 175 154 172 204 183 179 202 179 188 Greatest Support 277 | 40 46 69 83 83 83 115 119 112 112 112 187 187 187 187 181 241 241 241 193 159 164 221 221 223 223 232 232 269 179 277 Greatest Overweight (x) 1 | . 1 1 . . . . . . . . . . . . . . . . . . 1 1 . 1 . 1 . 1 . 1 Average Overweight (x) . | . . . . . . . . . . . . . . . . . . . . . . . . . . . . . . . Largest Inventory Capacity 25 | 8 15 15 20 20 20 15 20 20 20 20 20 20 20 20 20 20 20 20 20 25 25 25 25 25 25 25 25 25 25 25 Average Capacity 19 | 8 12 15 15 20 7 15 19 20 20 20 20 20 20 20 20 20 20 20 20 23 25 25 25 25 25 25 25 25 25 20 Most Carried 25 | 6 14 15 16 20 20 15 20 20 20 20 20 20 20 20 17 15 17 17 20 21 25 25 25 25 25 25 25 25 25 24 Average Carried 17 | 4 10 13 14 17 6 9 17 19 19 14 17 19 19 18 16 14 16 14 14 19 22 23 22 23 24 22 23 22 23 18 Final Capacity 25 | 8 15 15 20 20 5 15 20 20 20 20 20 20 20 20 20 20 20 20 20 25 25 25 25 25 25 25 25 25 25 20 Final Carried 25 | 4 14 15 16 20 5 13 20 20 20 12 19 20 20 17 15 14 17 13 20 20 24 20 23 24 22 25 25 25 23 12 Scrap Engine Consumption 180 | . . . . . 17 15 16 1 3 5 3 3 . 6 2 3 . 7 11 . 5 9 2 30 15 11 4 2 . 10 Constructs Created 18 | . . . . . 4 . 2 . . 1 2 . . . . 1 . . . . 5 . 1 . 1 . . . . 1 Constructs Modified 259 | . . . . . 11 7 18 4 7 2 10 4 1 17 . 10 . 6 6 . 8 33 4 31 15 10 . 21 . 34 Class Distribution -------------------- 33% | Construct 19% | Botlord-Construct 12% | Commander-Construct 10% | Gunner 8% | Bothacker-Construct 6% | Scavenger-Gunner 5% | Mutant 4% | Scavenger-Construct Dominant Class ---------------- Mutant | -10/Materials Gunner | -9/Materials Gunner | -9/Storage Scavenger-Gunner | -9/Garrison Gunner | -9/Recycling Construct | -7/Factory Construct | -7/Garrison Commander-Construct | -7/Factory Bothacker-Construct | -7/Garrison Construct | -6/Factory Botlord-Construct | -6/Garrison Botlord-Construct | -5/Factory Botlord-Construct | -5/Waste Bothacker-Construct | -5/Factory Commander-Construct | -5/Extension Commander-Construct | -5/Cetus Commander-Construct | -5/Archives Commander-Construct | -5/Hub_04(d) Construct | -5/Garrison Construct | -4/Factory Construct | -4/Garrison Construct | -4/Factory Botlord-Construct | -4/Garrison Botlord-Construct | -3/Research Commander-Construct | -3/Testing Scavenger-Construct | -2/Research Construct | -2/Quarantine Construct | -2/Garrison Construct | -1/Access Construct | -1/Command Resources | -11 -10 -9 -9 -9 -9 -7 -7 -7 -7 -6 -6 -5 -5 -5 -5 -5 -5 -5 -5 -4 -4 -4 -4 -3 -3 -2 -2 -2 -1 -1 ----------- Run | Yrd Mat Mat Sto Gar Rec Fac Gar Fac Gar Fac Gar Fac Was Fac Ext Cet Arc Hub Gar Fac Gar Fac Gar Res Tes Res Qua Gar Acc Com Matter Collected 27673 | 201 341 816 188 195 2052 362 1173 518 1287 594 469 435 129 605 1199 140 82 588 1128 336 625 882 932 2572 5671 928 21 1146 178 1880 Remotely . | . . . . . . . . . . . . . . . . . . . . . . . . . . . . . . . Salvage Created 48784 | 126 562 1466 643 1015 1658 571 1484 850 1548 739 1645 410 805 1136 1115 508 310 1820 1604 419 2048 2886 1205 2938 12075 2038 284 991 949 2936 Parts 1730 | 10 25 85 38 71 62 29 49 39 76 26 56 9 1 41 41 24 20 88 56 23 86 113 43 75 340 65 8 44 26 61 Haulers Intercepted 23 | . 2 4 3 . . 1 . 2 . . . 1 . 1 . . . 1 . . . 2 . 4 1 . . . 1 . Recyclers Shooed 26 | . 2 1 . . 5 . . 1 . 1 . . . . . . . . . 1 . 1 . . 14 . . . . . Parts Field Recycled . | . . . . . . . . . . . . . . . . . . . . . . . . . . . . . . . Retrieved Matter . | . . . . . . . . . . . . . . . . . . . . . . . . . . . . . . . Parts Self-Destructed . | . . . . . . . . . . . . . . . . . . . . . . . . . . . . . . . Prevented . | . . . . . . . . . . . . . . . . . . . . . . . . . . . . . . . Parts Restored 1 | . . . . . . . . . . . . . . . . . 1 . . . . . . . . . . . . . Broken 1 | . . . . . . . . . . . . . . . . . 1 . . . . . . . . . . . . . Kills | -11 -10 -9 -9 -9 -9 -7 -7 -7 -7 -6 -6 -5 -5 -5 -5 -5 -5 -5 -5 -4 -4 -4 -4 -3 -3 -2 -2 -2 -1 -1 ------- Run | Yrd Mat Mat Sto Gar Rec Fac Gar Fac Gar Fac Gar Fac Was Fac Ext Cet Arc Hub Gar Fac Gar Fac Gar Res Tes Res Qua Gar Acc Com Combat Hostiles Destroyed 670 | . 14 33 7 33 11 10 30 11 35 11 29 5 4 19 6 6 2 19 16 5 30 46 22 56 110 31 5 24 13 27 Melee 3 | . . . . . . . . . . . 1 . . . . . . . . . . . . . 1 1 . . . . Guns 17 | . 7 6 . . . . 3 . . . . . . . . . . . . . . . . . 1 . . . . . Cannons 550 | . . 11 7 26 11 4 22 11 33 11 25 5 4 19 6 6 2 17 16 5 30 32 21 54 79 30 5 22 10 26 AOE 82 | . 7 15 . 6 . 4 5 . 2 . . . . . . . . 1 . . . 12 1 . 25 . . 2 2 . Classes Destroyed 32 | 2 6 4 . 1 2 . 2 . 1 . 3 . 1 . . . . . . . . 1 1 4 2 1 . . . 1 Worker 107 | . 2 2 1 . . 1 . 1 . 1 . . . 4 . . . 1 . . . . . . 93 . . . 1 . Builder 125 | . . 1 1 . 1 . . . . . . . . . 1 . . 3 . . . 4 . . 108 2 . . 4 . Tunneler 6 | 2 . 3 . . . . . . . . . . . . . . . . . . . 1 . . . . . . . . Hauler 23 | . 2 4 3 . . 1 . 2 . . . 1 . 1 . . . 1 . . . 2 . 4 1 . . . 1 . Recycler 85 | 1 1 3 1 . 14 1 . 2 . 1 . 1 . . 4 . . 1 . . . 1 . . 53 1 . . . . Carrier 1 | . . . . . . . . . . . . . . . . . . . . . . . . 1 . . . . . . Mechanic 3 | . 1 1 . . . . . . . . . . . . . . . . . . . . . . 1 . . . . . Operator 14 | . . 1 . . . . . . . 1 . . . . . . 3 1 . 1 . . . . 3 1 2 . 1 . Drone 1 | . . . . . . . . . . . . . . . . . . . . . . . . 1 . . . . . . Watcher 35 | . 2 5 . . . . . 2 . . . . . 3 . 1 . 3 . . . 5 1 1 3 3 . . 4 2 Swarmer 73 | . 6 7 . 13 . 4 7 . 5 2 2 . . . . . . . . . 8 8 1 6 1 . . 3 . . Cutter 7 | . . . . . . . . . . . . . . . . . . . . . . . 3 . . . . 4 . . Saboteur 10 | . . . . . . . . . . . 1 . . . . . . . . . 1 1 . . 6 1 . . . . Grunt 256 | . 8 19 3 13 4 . 12 4 14 8 16 4 . 6 2 . . 7 12 3 14 20 6 14 43 12 . 5 7 . Brawler 30 | . . . . . . . . . 3 . 2 . . . 1 . . 1 2 . . 8 . 1 10 2 . . . . Duelist 14 | . . 1 . . . . 2 . . . . . . . . . . 1 . . . 1 . . 8 1 . . . . Protector 5 | . . . . . . . . . . . . . . . . . . . . . . 1 . . 4 . . . . . Researcher 14 | . . . . . . . . . . . . . . . . . . . . . . . . . 14 . . . . . Sentry 88 | . . 6 4 4 4 4 5 3 8 2 4 1 . 3 1 . 2 3 2 1 6 . 6 3 2 9 . 5 . . Demolisher 7 | . . . . . . . . . . . . . . . . . . . . . . . . 2 4 . . 1 . . Specialist 6 | . . . . . . . 1 . 2 . . . . . . . . . . . . . . . 3 . . . . . Hunter 48 | . . . . . . . 3 3 1 . . . . 3 . . . 3 . . . 4 . 10 10 4 2 1 4 . Programmer 53 | . . . . 3 . 2 . 1 2 . . . . 7 . . . 1 . 1 1 3 6 . 16 1 3 4 2 . Heavy 1 | . . . . . . . . . . . . . . . . . . . . . . . . . . 1 . . . . Behemoth 12 | . . . . . . . . . . . 3 . . . 2 . . . 2 . 1 . . 3 . . . 1 . . Compactor 4 | . . . . . . . . . . . . . 4 . . . . . . . . . . . . . . . . . Cetus Guard 6 | . . . . . . . . . . . . . . . . 6 . . . . . . . . . . . . . . M Guard 2 | . . . . . . . . . . . . . . . . . . . . . . . . . . . . . . 2 Enhanced Q-Series 22 | . . . . . . . . . . . . . . . . . . . . . . . . . . . . . . 22 Lightning 3 | . . . . . . . . . . . . . . . . . . 3 . . . . . . . . . . . . Combat Programmer 2 | . . . . . . . . . . . . . . . . . . . . . . . . . . . . . . 2 Investigator 1 | . . . . . . . . . . . . . . . . . . . . . . . . . 1 . . . . . Striker 14 | . . . . . . . . . . . . . . . . . . . . . . . . 12 2 . . . . . Executioner 5 | . . . . . . . . . . . 1 . . . . . . . . . . . . 4 . . . . . . Alpha 7 1 | . . . . . . . . . . . . . . . . . . . . . . . . . 1 . . . . . Protovariant P 1 | . . . . . . . . . . . . . . . . . . . . . . . . . 1 . . . . . Scientist 2 | . . . . . 2 . . . . . . . . . . . . . . . . . . . . . . . . . Scrapper 3 | . . . . . 3 . . . . . . . . . . . . . . . . . . . . . . . . . Best Kill Streak 53 | 2 6 13 6 10 4 5 6 4 7 4 6 2 2 6 8 4 5 8 5 5 6 12 6 8 53 9 2 7 17 9 Combat Bots Only 21 | . 5 9 3 10 2 4 6 2 7 4 6 2 2 5 4 3 2 8 5 4 6 11 6 7 21 9 2 7 10 9 Max Kills in Single Turn 9 | 1 1 3 1 2 1 3 2 2 1 2 1 2 1 2 1 1 1 1 1 1 2 4 2 2 9 2 1 2 2 1 Gunslinging . | . . . . . . . . . . . . . . . . . . . . . . . . . . . . . . . Exploded 8 | . 1 2 . 1 . 2 2 . 1 . . . . . . . . 1 . . . 4 1 . 8 . . 2 1 . Melee 1 | . . . . . . . . . . . 1 . . . . . . . . . . . . . 1 1 . . . . Uniques/NPCs Destroyed 1 | . . . . . . . . . . . . . . . . . . . . . . . . . . . . . . 1 MAIN.C Shell (-1/Command) Combat | -11 -10 -9 -9 -9 -9 -7 -7 -7 -7 -6 -6 -5 -5 -5 -5 -5 -5 -5 -5 -4 -4 -4 -4 -3 -3 -2 -2 -2 -1 -1 -------- Run | Yrd Mat Mat Sto Gar Rec Fac Gar Fac Gar Fac Gar Fac Was Fac Ext Cet Arc Hub Gar Fac Gar Fac Gar Res Tes Res Qua Gar Acc Com Hostile Shots Fired 2743 | . 46 135 13 82 38 118 292 73 274 27 120 17 . 71 21 7 2 101 40 10 77 170 70 243 347 71 21 72 26 159 Missed 1013 | . 8 52 5 25 9 50 98 17 103 9 39 7 . 23 6 . 1 21 9 3 19 65 29 115 125 42 8 33 16 76 Intercepted 4 | . . . . . . . . . . . . . . . . . . . . . . . . . . . . . . 4 Hits 1730 | . 38 83 8 57 29 68 194 56 171 18 81 10 . 48 15 7 1 80 31 7 58 105 41 128 222 29 13 39 10 83 Melee 24 | . . . . . . . 2 . 2 . 1 . . . . . . . . . 2 . 1 7 3 1 . 5 . . Projectile 1706 | . 38 83 8 57 29 68 192 56 169 18 80 10 . 48 15 7 1 80 31 7 56 105 40 121 219 28 13 34 10 83 AOE 23 | . . . . . . . . . . . . . . . . . . . . . . 1 1 3 10 . . 1 . 7 Critical Strikes 65 | . . 1 1 1 1 1 4 . 5 . 5 1 . 3 . 2 . 7 . . . 5 1 3 12 3 1 3 . 5 Actively Blocked 1 | . . . . . . . . . . . 1 . . . . . . . . . . . . . . . . . . . Part Disruptions 2 | . . . . . . . . . . . . . . . . . . . . . . . . . 1 . . . . 1 Damage Taken 29397 | . 417 974 118 606 419 727 2366 349 876 129 1156 391 35 1027 423 179 27 2625 419 162 1043 1924 647 2993 4532 1164 166 473 103 2927 Core 2807 | . 90 137 . 25 58 67 389 65 99 11 74 18 . 179 . . . 203 26 . 192 156 10 375 364 47 . . 21 201 Absorbed by Shields 4826 | . . . . . . . 74 250 936 127 297 . . . . . . . 275 . 202 471 313 . 321 87 169 491 110 703 Reduced by Siege Mode 414 | . . . . . . . . . . . . . . . . . . 394 20 . . . . . . . . . . . Redirected to Shielding 115 | . . . . . . . . . . . 110 . . . . . . . . . . . . . . . . . . 5 Ignored by Resistances 601 | . . . . . . . 25 . . . . . . . . . . 61 . . . . . . 253 37 . 99 . 126 Regen/Repaired (Parts) 18458 | . . . . . 5 168 1144 454 923 34 538 115 91 806 107 665 . 1302 800 73 729 1165 1045 2289 2614 1347 . 902 . 1142 Core Remaining (%) 84 | 100 64 . . . 89 . . . 99 . 92 . . . . . . . 65 . . . 74 . 74 . . 97 . 88 Volleys Fired 2706 | 11 68 81 16 70 54 46 165 79 127 43 117 23 44 96 64 11 11 133 105 24 90 114 94 199 493 77 22 64 40 125 Largest 3 | 2 2 3 3 3 3 2 2 1 2 1 1 1 1 1 1 1 1 1 1 1 2 2 2 1 3 1 1 1 1 1 Hottest 564 | 70 70 136 204 204 204 132 164 40 120 40 85 150 150 150 150 184 184 184 184 128 199 285 241 392 392 304 304 564 216 216 Shots Fired 3068 | 22 117 166 48 146 131 49 219 79 137 43 117 23 43 91 62 11 11 128 101 23 92 116 95 197 473 77 22 64 40 125 Gun 265 | 22 101 95 . . . 3 25 . 10 . . . . . . . . . . . 1 1 . . 7 . . . . . Cannon 2547 | . . 56 48 138 131 44 175 69 124 31 109 19 38 77 29 11 11 125 85 23 86 100 82 195 424 77 22 57 36 125 Launcher 72 | . 16 15 . 8 . 2 6 . 3 . . . . . . . . . . . . 6 1 . 14 . . 1 . . Special 184 | . . . . . . . 13 10 . 12 8 4 5 14 33 . . 3 16 . 5 9 12 2 28 . . 6 4 . Kinetic 1634 | 11 52 54 . . . 11 153 69 128 31 72 17 38 10 . 4 11 76 . . 3 68 33 172 352 61 22 56 36 94 Thermal 1032 | 11 49 59 48 138 131 36 47 . 6 . 17 2 . 67 29 7 . 49 85 23 84 19 37 15 38 16 . 1 . 18 Explosive 72 | . 16 15 . 8 . 2 6 . 3 . . . . . . . . . . . . 6 1 . 14 . . 1 . . Electromagnetic 146 | . . 38 . . . . . . . . 20 . . . . . . . . . . 14 12 8 41 . . . . 13 Robot Hit Streak 40 | 5 14 17 9 11 8 10 18 12 12 9 24 6 10 19 17 21 6 17 10 2 21 12 20 25 16 17 3 12 10 40 Robot Miss Streak 8 | 2 5 3 2 3 3 2 3 5 4 3 4 4 5 4 3 3 1 5 4 3 4 4 2 4 8 3 1 2 2 1 Penetration Max 4 | . . . . . . . . . . . . . . . . . . . . . . 1 1 . 4 1 1 1 1 1 Secondary Targets 3 | . 1 2 . . . . . . . . . . . . . . . . . . . . . . . . . . . . Max Gunslinging Chain 1 | . 1 1 . . . . . . . . . . . . . . . . . . . . . . . . . . . . Capacitor 132 | . . . . . . . . . . . . . . . . . . . . 23 83 26 . . . . . . . . Shots Hit Robots 1887 | 11 67 111 21 56 72 30 121 48 90 28 76 15 35 54 51 7 10 76 47 10 62 75 66 123 286 50 10 40 27 112 Core Hits 1092 | 4 34 78 13 40 29 20 63 16 40 11 32 7 9 25 9 6 5 25 17 4 24 69 27 55 322 29 5 18 14 42 Critical Kills 33 | 1 . . . 1 1 . . . 1 . . 1 . 3 . 1 . 2 . . . . . . 2 15 4 1 . . Critical Parts Destroyed 32 | . . . . . . . . 1 1 . . 1 . 5 3 1 . 1 . . . . . . 4 9 2 4 . . Critical Strikes 114 | 2 2 4 . 1 1 1 13 1 2 1 2 2 5 8 3 2 . 3 . . . . . 14 7 26 6 8 . . Burn 7 | 1 2 3 . . . 1 . . . . . . . . . . . . . . . . . . . . . . . . Meltdown 2 | . . . . 1 1 . . . . . . . . . . . . . . . . . . . . . . . . . Destroy 74 | 1 . . . . . . . 1 2 . . 2 5 8 3 2 . 3 . . . . . . 7 26 6 8 . . Blast 30 | . . . . . . . 13 . . 1 2 . . . . . . . . . . . . 14 . . . . . . Corrupt 1 | . . 1 . . . . . . . . . . . . . . . . . . . . . . . . . . . . Melee Attacks 3 | . . 1 2 . . . . . . . . . . . . . . . . . . . . . . . . . . . Impact 3 | . . 1 2 . . . . . . . . . . . . . . . . . . . . . . . . . . . Slashing . | . . . . . . . . . . . . . . . . . . . . . . . . . . . . . . . Piercing . | . . . . . . . . . . . . . . . . . . . . . . . . . . . . . . . Sneak Attacks . | . . . . . . . . . . . . . . . . . . . . . . . . . . . . . . . Combat Hostiles . | . . . . . . . . . . . . . . . . . . . . . . . . . . . . . . . Follow-up Attacks . | . . . . . . . . . . . . . . . . . . . . . . . . . . . . . . . Damage Inflicted 268552 | 145 1337 3044 471 1735 1714 1272 4717 3262 6471 1779 5210 1140 3422 4291 2620 860 1140 8407 5610 1653 10070 10931 9208 23331 109153 10074 1947 7818 5807 19913 Guns 2492 | 145 804 824 . . . 52 438 . 62 . . . . . . . . . . . . 28 . . 139 . . . . . Cannons 248923 | . . 1002 467 1330 1704 938 3656 2808 6090 1642 5210 1135 3422 4251 2545 860 1140 8365 5535 1636 10070 8043 9042 23209 100335 10051 1947 7563 5014 19913 Explosions 16050 | . 516 1207 . 405 . 282 623 454 319 50 . . . . . . . . 75 . . 2860 166 90 7955 . . 255 793 . Melee . | . . . . . . . . . . . . . . . . . . . . . . . . . . . . . . . Ramming 1087 | . 17 11 4 . 10 . . . . 87 . 5 . 40 75 . . 42 . 17 . . . 32 724 23 . . . . Kinetic 189185 | 81 451 863 . . . . 2795 2808 6098 1642 3977 1135 3422 301 . 456 1140 5546 . . . 5356 3502 20018 92918 6853 1947 7311 5014 15551 Thermal 54534 | 64 353 638 467 1330 1704 990 1299 398 54 50 485 . . 3950 2545 404 . 2819 5535 1636 10070 1884 5166 2003 4083 3198 . 252 395 2762 Explosive 14553 | . 516 1122 . 405 . 282 623 . 319 . . . . . . . . . 75 . . 2860 166 90 7442 . . 255 398 . Electromagnetic 9193 | . . 410 . . . . . 56 . . 748 . . . . . . . . . . 831 374 1188 3986 . . . . 1600 Impact . | . . . . . . . . . . . . . . . . . . . . . . . . . . . . . . . Slashing . | . . . . . . . . . . . . . . . . . . . . . . . . . . . . . . . Piercing . | . . . . . . . . . . . . . . . . . . . . . . . . . . . . . . . Highest Corruption 43 | . . . . . . 2 2 1 1 . . . 25 30 30 . 9 27 27 1 2 3 9 15 43 4 4 7 3 8 Average Corruption 15 | . . . . . . 1 2 1 1 . . . 19 22 30 . 4 22 27 1 1 2 3 15 31 3 3 4 2 4 Corruption Purged 24 | . . . . . . . . . . . . . . 10 . . 9 . . . 2 . . . . . . . . 3 Corruption Blocked . | . . . . . . . . . . . . . . . . . . . . . . . . . . . . . . . Effects 466 | . . . . . . 3 9 7 5 . . . 10 66 30 . 8 12 42 1 6 3 5 50 186 6 3 3 1 10 Message Errors 115 | . . . . . . 1 1 3 . . . . 3 15 8 . 3 1 17 . 1 1 1 18 40 . 1 . . 1 Matter Fused 103 | . . . . . . 1 1 2 . . . . 1 17 6 . 2 1 11 . 2 1 1 10 42 3 . 2 . . Heat Flow Errors 46 | . . . . . . . . 1 2 . . . 1 8 4 . 1 2 2 . 1 . 1 6 16 . . . 1 . Energy Discharges 49 | . . . . . . . 2 . . . . . . 10 2 . 2 . 3 . . . 1 6 16 2 . 1 . 4 Parts Rejected 5 | . . . . . . . . . 1 . . . . . . . . . 1 . . . . 1 1 . 1 . . . Parts Fused 6 | . . . . . . . . . . . . . . 2 . . . 1 . . . 1 . 1 1 . . . . . Data Loss (minor) 42 | . . . . . . . 2 1 1 . . . 2 4 5 . . 2 3 . 1 . . 2 15 1 1 . . 2 Data Loss (major) 27 | . . . . . . . 3 . . . . . . 4 2 . . . 1 . 1 . . 2 11 . . . . 3 Misfires 4 | . . . . . . . . . 1 . . . . . . . . . . . . . . . 3 . . . . . Alerts 9 | . . . . . . 1 . . . . . . 1 1 1 . . . . . . . . 1 4 . . . . . Misdirections 10 | . . . . . . . . . . . . . 1 . . . . . . . . . . 1 8 . . . . . Weapon Failures 50 | . . . . . . . . . . . . . 1 5 2 . . 5 4 1 . . 1 2 29 . . . . . Overload Shots . | . . . . . . . . . . . . . . . . . . . . . . . . . . . . . . . Overflow Damage 53297 | . 6 9 . 22 54 7 308 481 334 206 99 63 . 732 245 79 . 1091 979 462 1443 1224 1580 3739 31988 1770 554 1363 2049 2410 Projectiles 52376 | . . . . 20 54 . 308 299 334 194 99 63 . 732 224 79 . 1091 979 462 1443 1096 1580 3738 31607 1770 554 1363 1877 2410 Explosions 689 | . 6 9 . 2 . 7 . 182 . . . . . . . . . . . . . 128 . . 183 . . . 172 . Melee 232 | . . . . . . . . . . 12 . . . . 21 . . . . . . . . 1 198 . . . . . Knockbacks 266 | . . 5 . . . . 14 6 12 4 4 3 . . 1 . . 18 . 1 . 11 18 48 57 5 3 3 9 44 Impact 6 | . . . . . . . . . . 1 . . . . 1 . . . . 1 . . . . 2 1 . . . . Kinetic 219 | . . 5 . . . . 12 6 12 3 4 3 . . . . . 16 . . . 10 9 43 40 4 3 3 7 39 Secondary 41 | . . . . . . . 2 . . . . . . . . . . 2 . . . 1 9 5 15 . . . 2 5 Self-Inflicted Damage 564 | . 37 . . . . . 109 . . 14 . . . . . . . . . 8 . 157 . 37 178 24 . . . . Shots 14 | . 2 . . . . . 1 . . 1 . . . . . . . . . . . 3 . 1 5 1 . . . . Rammed 21 | . 3 6 1 . 3 . . . . . . . . 2 1 . . 1 . 1 . . . 2 . 1 . . . . Targets Rammed 53 | . 4 7 2 . 3 . . . . 3 . 1 . 3 2 . . 1 . 1 . . . 2 23 1 . . . . Kicked 28 | . . . . . . . . . . 3 . 1 . 1 . . . . . . . . . . 23 . . . . . Crushed 4 | . 1 1 1 . . . . . . . . . . . 1 . . . . . . . . . . . . . . . Highest Temperature 741 | 72 208 301 153 462 464 290 373 286 497 152 248 347 366 741 170 220 330 521 438 375 433 505 344 501 564 184 569 444 142 320 Average Temperature 119 | 30 49 89 61 132 137 85 75 62 115 43 47 122 144 151 79 102 152 205 137 142 140 148 115 147 176 88 227 185 88 114 Received Heat Transfer 4905 | . 132 399 54 144 192 162 690 76 303 27 414 45 . 153 36 . 9 102 125 42 144 305 86 102 428 62 . 52 16 605 Effects 80 | . . . . 2 18 . 2 . 2 . 1 . 1 9 . 3 . 9 4 1 3 10 1 7 6 . 1 . . . Shutdowns 10 | . . . . . 3 . 1 . . . . . . 2 . . . 2 1 . . . . 1 . . . . . . Energy Bleed 21 | . . . . . 5 . . . 1 . 1 . . 5 . . . 1 1 . 2 2 . 2 . . 1 . . . Interference 27 | . . . . 1 5 . 1 . . . . . 1 . . 3 . 3 . . 1 7 . 2 3 . . . . . Matter Decay 3 | . . . . . 2 . . . 1 . . . . . . . . . . . . . . . . . . . . . Short Circuit 3 | . . . . . 1 . . . . . . . . . . . . . . . . . . . 2 . . . . . Damage (minor) 13 | . . . . 1 2 . . . . . . . . 1 . . . 3 . 1 . 1 1 2 1 . . . . . Damage (major) 3 | . . . . . . . . . . . . . . 1 . . . . 2 . . . . . . . . . . . Siege Activations 3 | . . . . . . . . . . . . . . . . . . 1 2 . . . . . . . . . . . Total Turns 134 | . . . . . . . . . . . . . . . . . . 70 64 . . . . . . . . . . . Longest Duration 70 | . . . . . . . . . . . . . . . . . . 70 33 . . . . . . . . . . . Martial Activations . | . . . . . . . . . . . . . . . . . . . . . . . . . . . . . . . Shielding Activations . | . . . . . . . . . . . . . . . . . . . . . . . . . . . . . . . Robots Disrupted . | . . . . . . . . . . . . . . . . . . . . . . . . . . . . . . . Combat Hostiles . | . . . . . . . . . . . . . . . . . . . . . . . . . . . . . . . Robots Corrupted 24 | . . 1 . . . . . . . 2 3 . . . . . . 1 . . . 2 . 3 9 . . . 2 1 Combat Hostiles 15 | . . 1 . . . . . . . . 3 . . . . . . 1 . . . 2 . 2 4 . . . 1 1 Parts Fried 77 | . . 1 . . . . . . . 6 7 . . . . . . 1 . . . 3 3 6 47 . . . 2 1 Impact Corruptions 44 | . . . . . . . . . . 2 . . . . 1 . . 1 . . . 1 . 2 32 . . . 3 2 Robots Melted 4 | . . . . 1 1 2 . . . . . . . . . . . . . . . . . . . . . . . . Combat Hostiles 3 | . . . . 1 . 2 . . . . . . . . . . . . . . . . . . . . . . . . Parts Melted 34 | . 1 1 . 5 2 6 6 . . 4 . . . 1 1 . . . 2 . 1 . 2 1 . . . . 1 . Heat Transferred 25787 | 259 1184 1630 814 2009 2753 1517 2405 300 100 50 592 . . 2651 925 148 . 718 1332 370 2257 592 1053 111 984 . . . 250 783 Parts Sabotaged 7 | . . . . . . . . . . . 1 . . . . . . . . . 2 . . . 3 1 . . . . Parts Stolen . | . . . . . . . . . . . . . . . . . . . . . . . . . . . . . . . Parts Stripped . | . . . . . . . . . . . . . . . . . . . . . . . . . . . . . . . Power Chain Reactions 13 | . . 2 . . . . . . . . . . . . . . . . . . . . . . 10 . . . 1 . Alert | -11 -10 -9 -9 -9 -9 -7 -7 -7 -7 -6 -6 -5 -5 -5 -5 -5 -5 -5 -5 -4 -4 -4 -4 -3 -3 -2 -2 -2 -1 -1 ------- Run | Yrd Mat Mat Sto Gar Rec Fac Gar Fac Gar Fac Gar Fac Was Fac Ext Cet Arc Hub Gar Fac Gar Fac Gar Res Tes Res Qua Gar Acc Com Maximum Alert Level 5 | . 1 3 2 4 2 1 4 2 4 3 4 3 1 1 1 1 1 2 3 2 4 4 4 4 5 5 5 5 4 3 Low Security (%) 22 | 100 93 43 . . 8 64 12 9 . 22 . . 5 88 83 39 68 26 . . . . . . 18 . . . . 87 Level 1 23 | . 6 10 89 17 67 35 9 43 9 20 6 . 94 11 16 60 31 36 28 . 2 . . 36 14 . . . . . Level 2 19 | . . 19 10 12 24 . 28 46 20 46 22 29 . . . . . 36 51 100 18 4 2 45 15 . . . . . Level 3 16 | . . 25 . 62 . . 28 . 28 10 42 70 . . . . . . 19 . 30 49 76 16 3 . . . 9 12 Level 4 9 | . . . . 7 . . 21 . 42 . 28 . . . . . . . . . 49 45 20 1 7 . . . 90 . Level 5 6 | . . . . . . . . . . . . . . . . . . . . . . . . . 26 23 82 100 . . High Security 3 | . . . . . . . . . . . . . . . . . . . . . . . . . 13 76 17 . . . Max Security . | . . . . . . . . . . . . . . . . . . . . . . . . . . . . . . . Peak Influence 5071 | 5 212 804 412 1123 566 266 1330 697 1389 728 1319 818 284 373 229 299 278 565 1013 610 1549 1411 1267 1127 5071 3685 2332 2453 1481 974 Initial 2852 | . . 59 332 258 505 251 117 697 298 728 280 692 280 133 181 17 72 18 395 531 396 812 674 536 631 2852 2072 1749 1466 921 Average 752 | 1 104 377 350 798 350 189 721 379 923 393 903 733 241 134 80 213 159 290 568 553 1100 1058 924 538 1674 3200 2151 2086 1298 205 Influence Increases 27392 | 15 574 1217 255 895 571 415 1353 1071 1111 613 1139 434 30 1029 263 395 226 1179 678 175 1223 1645 880 1435 5894 913 380 786 480 118 Destroy 0b10 Robot/C 13090 | . 280 660 140 680 200 200 700 280 740 280 680 220 . 400 180 180 80 520 360 100 640 900 455 885 2025 495 120 420 195 75 Destroy 0b10 Robot/NC 1780 | 15 40 100 30 . 75 15 10 40 . 20 10 20 . 40 25 10 15 55 10 5 . 70 15 20 1056 20 8 . 44 12 Destroy Leader 1832 | . 68 178 56 30 20 72 10 78 50 50 20 44 . 108 10 . . 118 10 30 30 144 38 226 230 102 16 40 50 4 Allied During Kill 2685 | . . . . 6 17 . 17 51 16 72 113 2 . 5 42 175 95 247 8 . 109 . 3 10 1667 . 13 17 . . Trap Triggered on 0b10 40 | . . . . . . . . . . . . . . . . . . 40 . . . . . . . . . . . . Successful Hack 378 | . 13 11 9 . 4 . 14 18 . 40 . 21 . 75 . . . . 12 16 12 60 . 32 26 11 4 . . . Select Force Hacks 250 | . 60 50 . . 30 . . . . 30 . . . . . . . 50 . . . 30 . . . . . . . . Disable Machine 1800 | . 30 30 15 . 15 15 60 375 75 90 45 30 . 90 . . 30 30 15 . 60 165 90 60 264 60 84 12 48 12 Anti-Garrison Action 1188 | . . . . 100 . . 350 . 150 . 150 . . . . . . . 100 . 200 . 100 . . . . 38 . . Destroy Structure 2925 | . 83 68 5 64 2 13 117 76 65 31 76 52 30 128 6 30 6 74 163 24 157 186 164 154 542 177 87 211 119 15 Advance Influence 100 | . . . . . . 100 . . . . . . . . . . . . . . . . . . . . . . . . Partial Spotted 87 | . . . . . . . . . . . . . . . . . . . . . 15 . . 12 12 . 36 . 12 . Lose Combat Pursuer 723 | . . 120 . 15 . . 75 15 15 . 45 45 . 15 . . . 45 . . . 90 15 36 72 48 12 48 12 . Miscellaneous 514 | . . . . . 208 . . 138 . . . . . 168 . . . . . . . . . . . . . . . . Influence Decreases 26433 | 15 432 571 646 169 1333 608 191 1975 148 1601 221 951 642 848 602 245 356 666 230 622 240 2231 889 1266 1946 2299 1733 673 1484 600 Entered New Map 13327 | . . 83 456 139 618 210 51 633 128 661 121 627 522 57 190 15 110 34 170 482 170 737 289 418 492 2219 1613 583 979 520 Time Decay 7016 | 15 422 318 190 . 715 398 . 482 . 270 . 294 100 486 242 190 246 302 . 140 . 494 . 658 664 70 120 . 130 70 Lost Part 300 | . 10 10 . 30 . . 20 . . 10 20 10 . . . . . 40 20 . 10 20 30 40 10 10 . . . 10 Lost Ally 940 | . . 10 . . . . 120 60 20 10 80 20 20 30 20 40 . 140 40 . 60 30 20 . 130 . . 90 . . Purge Threat 4850 | . . 150 . . . . . 800 . 650 . . . 275 150 . . 150 . . . 950 550 150 650 . . . 375 . Squads Dispatched 120 | . 3 5 1 . 2 3 . 6 . 2 . 4 . 6 . . . 7 . 6 . 9 . 7 36 18 2 . 3 . Investigation 25 | . 2 3 . . 2 . . . . 2 . 1 . 2 . . . 1 . 3 . 4 . 4 . 1 . . . . Extermination 19 | . . . . . . 2 . 2 . . . 1 . 3 . . . 1 . . . 2 . 1 5 . 1 . 1 . Reinforcement 30 | . 1 2 1 . . 1 . 2 . . . 1 . 1 . . . 4 . 1 . . . 2 10 3 1 . . . Assault 45 | . . . . . . . . 1 . . . 1 . . . . . 1 . 2 . 3 . . 21 14 . . 2 . Garrison 1 | . . . . . . . . 1 . . . . . . . . . . . . . . . . . . . . . . Intercept . | . . . . . . . . . . . . . . . . . . . . . . . . . . . . . . . Searches Triggered . | . . . . . . . . . . . . . . . . . . . . . . . . . . . . . . . Construction Impeded 8 | . . . . . . . . . . . . . . . . . . 1 . . . . . . 6 1 . . . . Haulers Reinforced 4 | . . . . . . 1 . 1 . . . . . . . . . . . . . . . 1 1 . . . . . Active Scanning Responses . | . . . . . . . . . . . . . . . . . . . . . . . . . . . . . . . Cargo Convoy Interrupts 1 | . . . . . . . . . . . . . . 1 . . . . . . . . . . . . . . . . Stealth | -11 -10 -9 -9 -9 -9 -7 -7 -7 -7 -6 -6 -5 -5 -5 -5 -5 -5 -5 -5 -4 -4 -4 -4 -3 -3 -2 -2 -2 -1 -1 --------- Run | Yrd Mat Mat Sto Gar Rec Fac Gar Fac Gar Fac Gar Fac Was Fac Ext Cet Arc Hub Gar Fac Gar Fac Gar Res Tes Res Qua Gar Acc Com Distress Signals 44 | . 2 3 . . 1 . 2 1 . . . . . 1 3 2 . 2 . . . . . 7 7 2 . . 2 9 Communications Jammed 53 | . . . . . . . . . . . . . . 16 . . . . . . . 13 . 2 22 . . . . . Distress Signals 53 | . . . . . . . . . . . . . . 16 . . . . . . . 13 . 2 22 . . . . . Times Spotted 972 | . 23 51 9 33 12 10 54 21 37 23 42 8 6 28 16 9 2 35 18 9 39 59 22 74 187 41 12 27 18 47 Peak Tracking Total 28 | . 4 11 3 6 3 4 11 3 5 4 5 3 2 4 5 5 1 6 5 3 5 10 5 4 28 9 7 5 6 7 Tactical Retreats 36 | . . 4 . 1 . . 3 1 1 . 1 1 . 1 . . . 3 . . . 6 1 2 4 1 1 4 1 . Traps | -11 -10 -9 -9 -9 -9 -7 -7 -7 -7 -6 -6 -5 -5 -5 -5 -5 -5 -5 -5 -4 -4 -4 -4 -3 -3 -2 -2 -2 -1 -1 ------- Run | Yrd Mat Mat Sto Gar Rec Fac Gar Fac Gar Fac Gar Fac Was Fac Ext Cet Arc Hub Gar Fac Gar Fac Gar Res Tes Res Qua Gar Acc Com Traps Triggered 35 | . . . 1 1 . 4 2 . 3 . 1 1 . 1 . . . . . . 3 2 1 2 2 5 . 6 . . Indirectly 1 | . . . . . . . . . . . . . . . . . . . . . . . . . . 1 . . . . Trap Hack Attempts . | . . . . . . . . . . . . . . . . . . . . . . . . . . . . . . . Triggered . | . . . . . . . . . . . . . . . . . . . . . . . . . . . . . . . Disarmed . | . . . . . . . . . . . . . . . . . . . . . . . . . . . . . . . Reprogrammed 7 | . . . . . . . . . . . . . . . . . . 7 . . . . . . . . . . . . Reused 4 | . . . . . . . . . . . . . . . . . . 4 . . . . . . . . . . . . Traps Extracted . | . . . . . . . . . . . . . . . . . . . . . . . . . . . . . . . Installed . | . . . . . . . . . . . . . . . . . . . . . . . . . . . . . . . Triggered 4 | . . . . . . . . . . . . . . . . . . 4 . . . . . . . . . . . . Machines | -11 -10 -9 -9 -9 -9 -7 -7 -7 -7 -6 -6 -5 -5 -5 -5 -5 -5 -5 -5 -4 -4 -4 -4 -3 -3 -2 -2 -2 -1 -1 ---------- Run | Yrd Mat Mat Sto Gar Rec Fac Gar Fac Gar Fac Gar Fac Was Fac Ext Cet Arc Hub Gar Fac Gar Fac Gar Res Tes Res Qua Gar Acc Com Machines Disabled 159 | . 2 2 1 . 1 1 10 25 8 6 9 2 . 6 . . 2 2 7 . 9 11 8 5 23 5 7 2 4 1 Max in Single Turn 13 | . 1 1 1 . 1 1 2 13 1 2 1 1 . 4 . . . 1 2 . 2 2 2 1 3 1 1 1 2 1 Garrison Access 8 | . . . . . . . . 1 . 1 . 1 . 1 . . . . . . . 1 . 2 . . . . 1 . Garrison Relay 18 | . . . . . . . 4 . 3 . 3 . . . . . . . 1 . 3 . 3 . . . . 1 . . Phase Generator 4 | . . . . . . . 1 . . . . . . . . . . . 1 . 1 . . . . . . 1 . . Network Hub 1 | . . . . . . . . . . . . . . . . . . 1 . . . . . . . . . . . . Machines Repaired . | . . . . . . . . . . . . . . . . . . . . . . . . . . . . . . . Machines Dismantled . | . . . . . . . . . . . . . . . . . . . . . . . . . . . . . . . Machines Sabotaged 2 | . . 1 . . . . . . . . . . . . . . . 1 . . . . . . . . . . . . Overloaded Fab Kills . | . . . . . . . . . . . . . . . . . . . . . . . . . . . . . . . Hacking | -11 -10 -9 -9 -9 -9 -7 -7 -7 -7 -6 -6 -5 -5 -5 -5 -5 -5 -5 -5 -4 -4 -4 -4 -3 -3 -2 -2 -2 -1 -1 --------- Run | Yrd Mat Mat Sto Gar Rec Fac Gar Fac Gar Fac Gar Fac Was Fac Ext Cet Arc Hub Gar Fac Gar Fac Gar Res Tes Res Qua Gar Acc Com Machines Accessed 112 | . 3 4 4 3 7 2 1 11 2 9 1 5 . 11 2 . . 5 1 4 1 12 1 6 8 1 5 1 1 1 Terminals 63 | . 1 4 3 3 2 1 1 5 2 6 1 3 . 6 2 . . 4 1 . 1 5 1 2 4 . 4 1 . . Fabricators 9 | . . . . . . . . 2 . . . . . . . . . . . 2 . 2 . 2 . 1 . . . . Repair Stations 6 | . . . . . . . . 1 . . . . . 2 . . . . . 1 . . . . 1 . . . . 1 Recycling Units 6 | . 2 . . . 4 . . . . . . . . . . . . . . . . . . . . . . . . . Scanalyzers 11 | . . . . . . . . 1 . 1 . 1 . 2 . . . . . . . 3 . . 3 . . . . . Garrison Access 16 | . . . 1 . . 1 . 2 . 2 . 1 . 1 . . . 1 . 1 . 2 . 2 . . 1 . 1 . Total Hacks 269 | . 6 15 7 7 17 2 2 23 4 21 2 8 . 27 4 . . 10 2 12 1 39 3 17 20 4 10 3 1 2 Successful 135 | . 5 6 4 1 13 1 1 14 . 12 . 4 . 12 1 . . 8 1 6 1 21 1 6 10 2 3 1 1 . Failed 132 | . 1 8 3 6 4 1 1 8 4 9 2 4 . 15 3 . . 2 1 6 . 18 2 11 10 2 7 2 . 2 Catastrophic 32 | . . 2 . 1 . . 1 2 2 3 . . . 5 1 . . 1 . . . 3 1 4 4 . 1 1 . . Database Lockouts 2 | . . 1 . . . . . 1 . . . . . . . . . . . . . . . . . . . . . . Manual 105 | . 7 17 2 . 9 1 1 9 . 4 . 3 . 12 4 . . 4 . . 1 18 . 4 5 . 1 1 . 2 Terminals 157 | . 3 15 6 7 4 1 2 14 4 13 2 4 . 15 4 . . 9 2 . 1 20 3 6 10 . 9 3 . . Fabricators 28 | . . . . . . . . 3 . . . . . . . . . . . 8 . 5 . 8 . 4 . . . . Repair Stations 16 | . . . . . . . . 2 . . . . . 6 . . . . . 3 . . . . 3 . . . . 2 Recycling Units 14 | . 3 . . . 11 . . . . . . . . . . . . . . . . . . . . . . . . . Scanalyzers 35 | . . . . . . . . 2 . 6 . 3 . 5 . . . . . . . 12 . . 7 . . . . . Garrison Access 17 | . . . 1 . . 1 . 2 . 2 . 1 . 1 . . . 1 . 1 . 2 . 3 . . 1 . 1 . Terminal Hacks 44 | . 3 3 2 1 4 . 1 5 . 3 . 1 . 3 1 . . 4 1 . . 5 1 1 2 . 2 1 . . Record 1 | . . . . . . . . . . . . . . . . . . . . . . . . . . . 1 . . . Part Schematic 3 | . 1 . . . . . . . . 1 . . . . . . . . . . . 1 . . . . . . . . Robot Analysis 7 | . 2 1 . . 2 . . 1 . . . . . . . . . . . . . 1 . . . . . . . . Open Door 3 | . . . . 1 . . . . . . . 1 . . . . . . . . . . . . . . 1 . . . Branch Access Points 2 | . . 1 . . . . . . . . . . . 1 . . . . . . . . . . . . . . . . Emergency Access Points 2 | . . . . . . . 1 . . . . . . . . . . . . . . . . . . . . 1 . . Scanalyzer Index 2 | . . . . . . . . 1 . . . . . 1 . . . . . . . . . . . . . . . . Unreport Threat 10 | . . 1 . . . . . 2 . 1 . . . . 1 . . 1 . . . 3 . . 1 . . . . . Locate Traps 2 | . . . . . . . . . . 1 . . . . . . . 1 . . . . . . . . . . . . Reprogram Traps 2 | . . . . . . . . . . . . . . . . . . 2 . . . . . . . . . . . . Recall Extermination 1 | . . . . . . . . . . . . . . . . . . . . . . . . 1 . . . . . . Registered Components 2 | . . . . . . . . 1 . . . . . 1 . . . . . . . . . . . . . . . . Zone Layout 2 | . . . 2 . . . . . . . . . . . . . . . . . . . . . . . . . . . Garrison Registry 2 | . . . . . . . . . . . . . . . . . . . 1 . . . 1 . . . . . . . Protovariant Controls 1 | . . . . . . . . . . . . . . . . . . . . . . . . . 1 . . . . . Release Object 2 | . . . . . 2 . . . . . . . . . . . . . . . . . . . . . . . . . Fabricator Hacks 10 | . . . . . . . . 1 . . . . . . . . . . . 3 . 3 . 1 . 2 . . . . Network Status 2 | . . . . . . . . 1 . . . . . . . . . . . . . 1 . . . . . . . . Load Schematic 5 | . . . . . . . . . . . . . . . . . . . . 2 . 1 . 1 . 1 . . . . Build 3 | . . . . . . . . . . . . . . . . . . . . 1 . 1 . . . 1 . . . . Repair Station Hacks 7 | . . . . . . . . 2 . . . . . 1 . . . . . 2 . . . . 2 . . . . . Scan Component 4 | . . . . . . . . 1 . . . . . 1 . . . . . 1 . . . . 1 . . . . . Repair 3 | . . . . . . . . 1 . . . . . . . . . . . 1 . . . . 1 . . . . . Recycling Unit Hacks 3 | . . . . . 3 . . . . . . . . . . . . . . . . . . . . . . . . . Retrieve Matter 3 | . . . . . 3 . . . . . . . . . . . . . . . . . . . . . . . . . Scanalyzer 25 | . . . . . . . . 2 . 5 . 1 . 4 . . . . . . . 8 . . 5 . . . . . Insert Component 12 | . . . . . . . . . . 2 . 1 . 2 . . . . . . . 4 . . 3 . . . . . Analyze 6 | . . . . . . . . . . 2 . . . 1 . . . . . . . 3 . . . . . . . . Retrieve Study 7 | . . . . . . . . 2 . 1 . . . 1 . . . . . . . 1 . . 2 . . . . . Garrison Access Hacks 16 | . . . 1 . . 1 . 2 . 2 . 1 . 1 . . . 1 . 1 . 2 . 2 . . 1 . 1 . Unlock Access 8 | . . . 1 . . 1 . 1 . 1 . . . . . . . 1 . 1 . 1 . . . . 1 . . . Seal Access 8 | . . . . . . . . 1 . 1 . 1 . 1 . . . . . . . 1 . 2 . . . . 1 . Unauthorized Hacks 30 | . 2 3 1 . 6 . . 2 . 2 . 1 . 3 . . . 3 . . 1 3 . 2 1 . . . . . Terminals 19 | . . 3 1 . 1 . . 1 . 1 . 1 . 3 . . . 3 . . 1 2 . 1 1 . . . . . Track 2 | . . . . . . . . . . . . . . . . . . 1 . . 1 . . . . . . . . . Assimilate 1 | . . 1 . . . . . . . . . . . . . . . . . . . . . . . . . . . . Botnet 12 | . . 1 1 . 1 . . 1 . 1 . 1 . 2 . . . 1 . . . 1 . 1 1 . . . . . Operators 2 | . . . . . . . . . . . . . . 1 . . . . . . . 1 . . . . . . . . Sabotage 2 | . . 1 . . . . . . . . . . . . . . . 1 . . . . . . . . . . . . Fabricators 1 | . . . . . . . . 1 . . . . . . . . . . . . . . . . . . . . . . Liberate 1 | . . . . . . . . 1 . . . . . . . . . . . . . . . . . . . . . . Repair Stations . | . . . . . . . . . . . . . . . . . . . . . . . . . . . . . . . Recycling Units 7 | . 2 . . . 5 . . . . . . . . . . . . . . . . . . . . . . . . . Reject 3 | . . . . . 3 . . . . . . . . . . . . . . . . . . . . . . . . . Mask 1 | . . . . . 1 . . . . . . . . . . . . . . . . . . . . . . . . . Tunnel 3 | . 2 . . . 1 . . . . . . . . . . . . . . . . . . . . . . . . . Scanalyzers 2 | . . . . . . . . . . 1 . . . . . . . . . . . 1 . . . . . . . . Extract 2 | . . . . . . . . . . 1 . . . . . . . . . . . 1 . . . . . . . . Garrison Access 1 | . . . . . . . . . . . . . . . . . . . . . . . . 1 . . . . . . Restock 1 | . . . . . . . . . . . . . . . . . . . . . . . . 1 . . . . . . Data Cores Recovered 4 | . . . . . . . . . . 1 . . . . . . . 1 . . . . . . 1 . 1 . . . Used . | . . . . . . . . . . . . . . . . . . . . . . . . . . . . . . . Hacking Detections 73 | . 1 3 3 2 4 1 1 4 2 6 1 3 . 9 2 . . 3 1 2 . 8 1 4 5 1 4 1 . 1 Full Trace Events 14 | . . 1 . 2 1 . . . . 1 . 1 . 2 . . . . . 2 . 2 . 1 . 1 . . . . Feedback Events 2 | . . . . . . . . . . . . . . 1 . . . . . 1 . . . . . . . . . . Corruption 2 | . . . . . . . . . . . . . . 1 . . . . . 1 . . . . . . . . . . Feedback Blocked . | . . . . . . . . . . . . . . . . . . . . . . . . . . . . . . . Robot Schematics Acquired 9 | . . . . . . . . . . . . . . . . . . . . . . . . . 9 . . . . . Robots Built . | . . . . . . . . . . . . . . . . . . . . . . . . . . . . . . . Authchips . | . . . . . . . . . . . . . . . . . . . . . . . . . . . . . . . Time . | . . . . . . . . . . . . . . . . . . . . . . . . . . . . . . . Total Robot Build Rating . | . . . . . . . . . . . . . . . . . . . . . . . . . . . . . . . Part Schematics Acquired 36 | . 1 . . . . . . . . 6 . . . 1 . . . . . . . 8 . . 20 . . . . . Parts Built 3 | . . . . . . . . . . . . . . . . . . . . 1 . . . . . 2 . . . . Authchips . | . . . . . . . . . . . . . . . . . . . . . . . . . . . . . . . Time 119 | . . . . . . . . . . . . . . . . . . . . 25 . 47 . . . 47 . . . . Total Part Build Rating 11 | . . . . . . . . . . . . . . . . . . . . 1 . . . . . 10 . . . . Part Studies Acquired 7 | . . . . . . . . 2 . 1 . . . 1 . . . . . . . 1 . . 2 . . . . . Parts Repaired 3 | . . . . . . . . 1 . . . . . . . . . . . 1 . . . . 1 . . . . . Time 218 | . . . . . . . . 50 . . . . . . . . . . . 56 . . . . 112 . . . . . Parts Recycled . | . . . . . . . . . . . . . . . . . . . . . . . . . . . . . . . Recycled Matter . | . . . . . . . . . . . . . . . . . . . . . . . . . . . . . . . Retrieved Matter . | . . . . . . . . . . . . . . . . . . . . . . . . . . . . . . . Retrieved Components . | . . . . . . . . . . . . . . . . . . . . . . . . . . . . . . . Parts Scanalyzed 5 | . . . . . . . . . . 2 . 1 . . . . . . . . . 2 . . . . . . . . Part Schematics Acquired 5 | . . . . . . . . . . 2 . . . 1 . . . . . . . 2 . . . . . . . . Parts Damaged 2 | . . . . . . . . . . 1 . . . . . . . . . . . 1 . . . . . . . . Bothacking | -11 -10 -9 -9 -9 -9 -7 -7 -7 -7 -6 -6 -5 -5 -5 -5 -5 -5 -5 -5 -4 -4 -4 -4 -3 -3 -2 -2 -2 -1 -1 ------------ Run | Yrd Mat Mat Sto Gar Rec Fac Gar Fac Gar Fac Gar Fac Was Fac Ext Cet Arc Hub Gar Fac Gar Fac Gar Res Tes Res Qua Gar Acc Com Used RIF Installer 9 | . . . . 1 . . 2 . 1 . 1 . . . . . . . 1 . 1 . 1 . . . . 1 . . Coupler Efficiency 1 | . . . . . . . . . . . . . . . . . . . . . . . . . . . . 1 . . Code Merge 1 | . . . . . . . . . . . 1 . . . . . . . . . . . . . . . . . . . Command Fork 1 | . . . . . . . 1 . . . . . . . . . . . . . . . . . . . . . . . Threat Obfuscator 1 | . . . . . . . . . . . . . . . . . . . . . . . 1 . . . . . . . Signal Jammer 1 | . . . . . . . . . 1 . . . . . . . . . . . . . . . . . . . . . Patrol Navigation 1 | . . . . 1 . . . . . . . . . . . . . . . . . . . . . . . . . . Structural Interface 1 | . . . . . . . 1 . . . . . . . . . . . . . . . . . . . . . . . Program Shield 1 | . . . . . . . . . . . . . . . . . . . 1 . . . . . . . . . . . Autooverride 1 | . . . . . . . . . . . . . . . . . . . . . 1 . . . . . . . . . Robots Hacked 69 | . . . . . . . 9 3 . 3 3 3 4 9 6 . . 2 1 . 4 1 5 1 11 . . 3 1 . Non-combat 19 | . . . . . . . . 1 . 1 . 2 . 5 1 . . 1 . . . 1 1 1 3 . . 1 1 . Combat 50 | . . . . . . . 9 2 . 2 3 1 4 4 5 . . 1 1 . 4 . 4 . 8 . . 2 . . Autooverrided 2 | . . . . . . . . . . . . . . . . . . . . . . . 2 . . . . . . . Robot Hacks Applied 109 | . . . . . . . 9 9 . 10 3 3 4 11 6 . . 2 2 . 4 8 10 1 19 . . 4 4 . parse_system 9 | . . . . . . . 2 . . . . . . . 3 . . 1 . . . . . . 3 . . . . . find_chute 1 | . . . . . . . . . . . . 1 . . . . . . . . . . . . . . . . . . map_walls 2 | . . . . . . . . . . . . . . 1 . . . . . . . . . . 1 . . . . . drop_inventory 3 | . . . . . . . . . . . . 1 . 2 . . . . . . . . . . . . . . . . check_alert 1 | . . . . . . . . . . . . . . . . . . . . . . . 1 . . . . . . . purge_threat 32 | . . . . . . . . 5 . 5 . . . 2 . . . . . . . 5 6 1 5 . . . 3 . disarm_traps 3 | . . . . . . . . . . . . . . . . . . . . . . 1 1 . . . . . 1 . block_reporting 2 | . . . . . . . . . . 1 . . . . . . . . . . . 1 . . . . . . . . map_route 1 | . . . . . . . . . . . . . . 1 . . . . . . . . . . . . . . . . disable_scanner 5 | . . . . . . . . . . . . . . . . . . . . . . . . . 5 . . . . . report_analyses 3 | . . . . . . . . . . . . . . . . . . . . . . . . . 3 . . . . . ignore_targets 4 | . . . . . . . . . . . . . 4 . . . . . . . . . . . . . . . . . find_garrison 3 | . . . . . . . . 1 . 2 . . . . . . . . . . . . . . . . . . . . amplify_resonance 14 | . . . . . . . 3 . . 1 2 1 . 1 1 . . 1 1 . . . 1 . 1 . . 1 . . wipe_record 2 | . . . . . . . . 1 . . . . . . . . . . . . . . 1 . . . . . . . disable_weapons 1 | . . . . . . . . 1 . . . . . . . . . . . . . . . . . . . . . . reboot_system 1 | . . . . . . . . . . . . . . . 1 . . . . . . . . . . . . . . . overwrite_iff 10 | . . . . . . . 3 . . . 1 . . 3 . . . . 1 . . . . . . . . 2 . . formatsys_low 5 | . . . . . . . . 1 . . . . . 1 . . . . . . . 1 . . 1 . . 1 . . formatsys_high 7 | . . . . . . . 1 . . 1 . . . . 1 . . . . . 4 . . . . . . . . . Relay Couplers Released 84 | . . . . . . . 18 2 12 1 11 . . 2 . . . . 3 . 14 3 11 3 . . . 4 . . Machine Destruction 84 | . . . . . . . 18 2 12 1 11 . . 2 . . . . 3 . 14 3 11 3 . . . 4 . . Attached 33 | . . . . . . . 3 3 . 4 2 1 . 1 2 . . . . . 3 3 3 1 2 . . 3 1 1 Fabnet Peak Effective % . | . . . . . . . . . . . . . . . . . . . . . . . . . . . . . . . Robots Rewired 24 | . . . . 2 . . 3 . . . 2 1 . . 11 . . . 2 . . . . . 3 . . . . . Allies Hacked 2 | . . . . . . . . 1 . . . . . . . . . . . . . . . . 1 . . . . . Hacks Repelled . | . . . . . . . . . . . . . . . . . . . . . . . . . . . . . . . Allies | -11 -10 -9 -9 -9 -9 -7 -7 -7 -7 -6 -6 -5 -5 -5 -5 -5 -5 -5 -5 -4 -4 -4 -4 -3 -3 -2 -2 -2 -1 -1 -------- Run | Yrd Mat Mat Sto Gar Rec Fac Gar Fac Gar Fac Gar Fac Was Fac Ext Cet Arc Hub Gar Fac Gar Fac Gar Res Tes Res Qua Gar Acc Com Total Allies 77 | . . 1 . 2 . . 7 4 2 4 5 1 1 4 14 . . . 4 . 6 2 2 1 9 . 1 5 . 2 Largest Group 13 | . . 1 . 2 2 . 3 4 3 3 5 3 1 2 13 13 11 11 2 . 3 1 2 1 8 . 1 2 . 2 Highest-Rated Group 566 | . . 10 . 56 56 . 60 122 83 94 293 313 116 58 395 395 328 328 148 . 291 58 21 90 566 . 98 163 . 388 Highest-Rated Ally 200 | . . 10 . 31 31 . 32 32 31 41 148 148 116 29 159 49 49 49 148 . 116 58 12 90 82 . 98 82 . 200 Total Orders 27 | . . . . . 1 . 3 . 2 . 4 3 . . . . . 2 1 . . . . . 9 . . 2 . . STAY 17 | . . . . . 1 . 2 . 1 . 1 2 . . . . . 2 1 . . . . . 6 . . 1 . . ROAM 1 | . . . . . . . . . . . 1 . . . . . . . . . . . . . . . . . . . FOLLOW 8 | . . . . . . . 1 . 1 . 2 1 . . . . . . . . . . . . 3 . . . . . AID 1 | . . . . . . . . . . . . . . . . . . . . . . . . . . . . 1 . . Ally Attacks 431 | . . . . 4 6 . 34 15 17 28 38 45 4 14 15 38 7 33 7 . 19 3 2 6 58 . 10 22 . 6 Total Damage 12314 | . . . . 41 131 . 762 502 334 380 1209 1615 255 251 422 463 127 666 237 . 587 90 17 195 2463 . 492 651 . 424 Kills 83 | . . . . 1 2 . 5 4 2 4 5 8 . 1 3 4 2 9 2 . 2 . 1 2 19 . 3 4 . . Allies Corrupted 2 | . . . . . . . . . . . . . . . . . . 2 . . . . . . . . . . . . Allies Melted 9 | . . . . . . . . . . . . . . 1 . . . . 1 . . . . . . . . . . 7 X0-1V1 Amusement Gains 472 | . 15 10 . . 92 40 36 . . . . . . . . . . 35 40 15 . . . 20 75 31 32 . . 31 Average Entertainment 78 | . 14 14 8 8 72 33 86 100 100 100 100 100 100 100 66 37 16 20 59 100 100 99 94 92 72 95 74 100 100 78 Good Acts 203 | . . 3 3 7 12 3 15 9 5 7 11 2 2 8 7 . . 3 9 1 1 15 2 17 18 11 6 10 5 11 Bad Acts 118 | . . 4 2 1 16 1 3 2 6 1 2 4 1 5 2 2 4 3 1 3 11 6 4 10 14 3 . 2 3 2 Intel | -11 -10 -9 -9 -9 -9 -7 -7 -7 -7 -6 -6 -5 -5 -5 -5 -5 -5 -5 -5 -4 -4 -4 -4 -3 -3 -2 -2 -2 -1 -1 ------- Run | Yrd Mat Mat Sto Gar Rec Fac Gar Fac Gar Fac Gar Fac Was Fac Ext Cet Arc Hub Gar Fac Gar Fac Gar Res Tes Res Qua Gar Acc Com Active Infowar (turns) 6055 | 4 1091 . . . . . . . . . . . . 1 . . . 35 . . 1 637 677 2391 771 447 . . . . Optics 4920 | . . . . . . . . . . . . . . . . . . . . . . 635 677 2391 770 447 . . . . Sensors 36 | . . . . . . . . . . . . . . 1 . . . 35 . . . . . . . . . . . . Structural 1 | . . . . . . . . . . . . . . . . . . . . . . . . . 1 . . . . . Seismic 1095 | 4 1091 . . . . . . . . . . . . . . . . . . . . . . . . . . . . . Cloaking 2 | . . . . . . . . . . . . . . . . . . . . . . 2 . . . . . . . . Spoofing 1 | . . . . . . . . . . . . . . . . . . . . . 1 . . . . . . . . . Robot Analysis Total 7 | . 2 1 . . 2 . . 1 . . . . . . . . . . . . . 1 . . . . . . . . Derelict Logs Recovered . | . . . . . . . . . . . . . . . . . . . . . . . . . . . . . . . Drone Launches . | . . . . . . . . . . . . . . . . . . . . . . . . . . . . . . . Drone Recoveries . | . . . . . . . . . . . . . . . . . . . . . . . . . . . . . . . Exploration | -11 -10 -9 -9 -9 -9 -7 -7 -7 -7 -6 -6 -5 -5 -5 -5 -5 -5 -5 -5 -4 -4 -4 -4 -3 -3 -2 -2 -2 -1 -1 ------------- Run | Yrd Mat Mat Sto Gar Rec Fac Gar Fac Gar Fac Gar Fac Was Fac Ext Cet Arc Hub Gar Fac Gar Fac Gar Res Tes Res Qua Gar Acc Com Turns Passed 29900 | 73 1128 712 394 1090 3291 941 1483 1243 928 594 1071 641 212 1273 653 399 539 679 757 290 999 1306 677 2478 2926 613 299 786 279 1146 Spaces Moved 18545 | 4 569 251 180 517 1162 649 781 1033 598 523 766 522 69 949 507 144 97 362 447 220 707 1279 533 1948 1423 543 387 550 358 467 Core . | . . . . . . . . . . . . . . . . . . . . . . . . . . . . . . . Treads 5571 | 4 533 215 180 517 1112 394 126 . . . 419 . . 185 507 144 97 362 280 . . . . 180 . 250 . . . 66 Legs 5293 | . . . . . . . 649 60 . 479 347 522 69 702 . . . . . . . 621 278 280 1015 90 . . . 181 Wheels 1998 | . 36 36 . . 50 255 6 973 598 44 . . . . . . . . . . . . . . . . . . . . Hover 2687 | . . . . . . . . . . . . . . 16 . . . . 167 220 707 658 255 57 . 3 387 217 . . Flight 2996 | . . . . . . . . . . . . . . 46 . . . . . . . . . 1431 408 200 . 333 358 220 Fastest Speed 35 | 160 105 105 160 160 102 102 119 95 86 86 81 107 107 87 87 87 106 106 83 83 83 68 68 68 54 54 54 35 35 35 Average Speed 99 | 160 156 152 160 160 157 118 123 96 92 91 85 107 107 104 87 99 106 109 110 83 85 76 68 101 78 72 54 49 35 77 Slowest Speed 245 | 160 160 160 160 160 160 153 167 119 109 92 107 107 107 159 87 106 106 158 127 83 134 134 68 245 80 105 54 86 35 245 Overloaded Moves . | . . . . . . . . . . . . . . . . . . . . . . . . . . . . . . . Propulsion Burnouts . | . . . . . . . . . . . . . . . . . . . . . . . . . . . . . . . Robots Hopped 11 | . . . . . . . . . . . . . . . . . . . . . . . . 3 6 . . . 2 . Potential Cave-ins 21 | . . . . . 2 . 3 . . . . . . 7 . . . . 4 . 3 . . . . . 2 . . . Cave-ins Triggered . | . . . . . . . . . . . . . . . . . . . . . . . . . . . . . . . Exploration Rate (%) 53 | 2 88 40 40 87 88 22 96 38 81 25 84 17 82 27 64 56 80 53 61 8 93 49 67 62 98 27 49 62 12 15 Regions Visited 30 Branch Regions 9 Pre-discovered Areas 3 | . 2 . . . 1 . . . . . . . . . . . . . . . . . . . . . . . . . Known Exits Taken 12 | . . 1 1 . . 1 . 1 . 1 . . . 1 . . . 1 . 1 . 1 . 1 1 . 1 . . . Unknown Exits Taken 8 | 1 1 . . . 1 . . . . . . . . . 1 1 1 . . . . . . . . 1 . . 1 . Scrap Searched . | . . . . . . . . . . . . . . . . . . . . . . . . . . . . . . . Spaces Dug 108 | . . . 1 . . 3 . 4 2 . 11 . . 11 1 . . 9 8 . 2 7 6 11 10 2 12 3 5 . Terrain Destroyed 1632 | . 87 73 1 4 . 10 100 85 30 30 37 15 19 70 3 2 1 39 96 12 69 95 52 82 426 60 32 56 37 9 Melee 1 | . . . 1 . . . . . . . . . . . . . . . . . . . . . . . . . . . Projectile 891 | . . . . . . 5 11 21 30 19 37 15 19 52 3 2 1 39 31 12 11 27 27 61 291 60 32 55 21 9 AOE 740 | . 87 73 . 4 . 5 89 64 . 11 . . . 18 . . . . 65 . 58 68 25 21 135 . . 1 16 . Terrain Rammed . | . . . . . . . . . . . . . . . . . . . . . . . . . . . . . . . Walls Destroyed . | . . . . . . . . . . . . . . . . . . . . . . . . . . . . . . . Machines Disabled . | . . . . . . . . . . . . . . . . . . . . . . . . . . . . . . . Actions | -11 -10 -9 -9 -9 -9 -7 -7 -7 -7 -6 -6 -5 -5 -5 -5 -5 -5 -5 -5 -4 -4 -4 -4 -3 -3 -2 -2 -2 -1 -1 --------- Run | Yrd Mat Mat Sto Gar Rec Fac Gar Fac Gar Fac Gar Fac Was Fac Ext Cet Arc Hub Gar Fac Gar Fac Gar Res Tes Res Qua Gar Acc Com Total 27852 | 49 682 426 249 659 2521 773 1104 1209 853 604 1074 584 168 1177 692 393 527 563 651 333 1114 1562 779 2374 2869 696 464 1019 492 1192 Wait 5459 | 29 17 36 21 32 1274 49 72 80 83 18 160 22 53 93 114 233 410 48 72 75 264 94 106 150 837 56 28 307 91 535 Move 18501 | 3 568 250 180 516 1161 649 780 1033 597 523 765 522 68 948 506 143 96 362 446 220 706 1279 532 1941 1410 542 386 549 353 467 Hop 11 | . . . . . . . . . . . . . . . . . . . . . . . . 3 6 . . . 2 . Pick Up 258 | . 9 13 7 10 3 17 20 4 10 2 15 4 1 11 1 . 5 3 11 4 11 15 16 22 17 6 6 5 1 9 Fast Attach 83 | 1 . 2 3 1 2 . . 2 1 . 1 1 . 4 . 1 . 4 3 1 5 6 2 5 16 4 6 . 1 11 Attach 99 | 2 1 3 1 2 1 3 7 2 . 6 4 2 1 1 2 1 2 2 3 3 2 10 6 6 11 3 . 3 2 7 Detach 23 | . . . . . . . 5 . 1 . 2 . . . . . . . 1 . . 4 3 . 3 . . 1 . 3 Swap 170 | 1 13 18 6 8 . 2 10 4 2 3 3 6 1 6 1 1 1 6 6 1 7 7 5 9 17 1 6 10 . 9 Drop 286 | 2 2 15 10 6 23 7 18 5 9 5 7 3 . 15 2 3 2 4 4 4 12 19 10 24 26 6 10 5 2 26 Fire 2706 | 11 68 81 16 70 54 46 165 79 127 43 117 23 44 96 64 11 11 133 105 24 90 114 94 199 493 77 22 64 40 125 Melee 3 | . . 1 2 . . . . . . . . . . . . . . . . . . . . . . . . . . . Ram 4 | . . . . . . . . . . . . . . . . . . . . 1 . . . 2 . 1 . . . . Kick 28 | . . . . . . . . . . 3 . 1 . 1 . . . . . . . . . . 23 . . . . . Crush 21 | . 4 7 2 . 3 . . . . . . . . 2 2 . . 1 . . . . . . . . . . . . Escape Stasis 146 | . . . . . . . 4 . 10 . . . . . . . . . . . 16 13 5 13 10 . . 75 . . Rewire 41 | . . . 1 14 . . 23 . . 1 . . . . . . . . . . 1 1 . . . . . . . . Trap . | . . . . . . . . . . . . . . . . . . . . . . . . . . . . . . . Miscellaneous 13 | . . . . . . . . . 13 . . . . . . . . . . . . . . . . . . . . . Route ------- -11/Scrapyard -10/Materials (discovered 5 exits: *Mat x3 / [*Min] / [*Sub]) -9/Materials (discovered 3 exits: Min / *Sto x2) -9/Storage -9/Garrison (discovered 3 exits: *Rec x3) -9/Recycling -7/Factory (discovered 2 exits: *Low / Gar) -7/Garrison (discovered 3 exits: *Fac x3) -7/Factory (discovered 4 exits: *Fac x2 / Low / Gar) -7/Garrison (discovered 2 exits: *Fac x2) -6/Factory (discovered 3 exits: *Fac / [*Low] / Gar) -6/Garrison (discovered 3 exits: *Fac x3) -5/Factory (discovered 2 exits: *Ext x2) -5/Waste -5/Factory (discovered 5 exits: *Fac x2 / *Upp x2 / *Ext) -5/Extension (discovered 3 exits: *Fac x2 / [*Cet]) -5/Cetus (discovered 2 exits: *Fac / [*Arc]) -5/Archives (discovered 2 exits: *Fac / *Hub) -5/Hub_04(d) (discovered 3 exits: *Fac x2 / Gar) -5/Garrison (discovered 3 exits: *Fac x3) -4/Factory -4/Garrison (discovered 4 exits: *Fac x4) -4/Factory (discovered 6 exits: *Res x4 / [*Upp] / Gar) -4/Garrison (discovered 3 exits: *Res x3) -3/Research (discovered 5 exits: *Res x3 / *Tes x2) -3/Testing -2/Research (discovered 2 exits: Acc / *Qua) -2/Quarantine (discovered 2 exits: Gar / Frg) -2/Garrison (discovered 3 exits: *Acc x3) -1/Access (discovered 2 exits: Sur / *Com) -1/Command (discovered 2 exits: Sur x2) By MAIN.C's Side History --------- Turn | Location | Event 52 | -11/Scrapyard | Discovered new exit (range 2) 74 | -11/Scrapyard | Entered Materials 295 | -10/Materials | Discovered new exit (range 16) 300 | -10/Materials | Build established: Mutant 426 | -10/Materials | Discovered new exit (range 5) 701 | -10/Materials | Discovered new exit (range 7) 1002 | -10/Materials | Discovered new exit (range 15) 1147 | -10/Materials | Discovered new exit (range 9) 1163 | -10/Materials | Prayed at D.C.S.S. Altar Unit 1202 | -10/Materials | Entered another Materials area 1202 | -9/Materials | Evolved 2 slots: Propulsion x1, Weapon x1 1209 | -9/Materials | Matter capacity permanently improved by X0-1V1 (+200; -100 max core) 1241 | -9/Materials | X0-1V1 vaporized surrounding terrain (radius 15) 1460 | -9/Materials | Identified exit to Mines 1460 | -9/Materials | Identified exit to Storage 1493 | -9/Materials | Build established: Gunner 1509 | -9/Materials | X0-1V1 announced a LAN party 1599 | -9/Materials | Central database locked down 1610 | -9/Materials | Destroyed 9 combat bots 1760 | -9/Materials | Destroyed 9 combat bots 1914 | -9/Materials | Entered Storage 2010 | -9/Storage | Propulsion slot count permanently improved by X0-1V1 (+1) 2308 | -9/Storage | Identified exit to Garrison 2308 | -9/Storage | Entered Garrison 2370 | -9/Garrison | Triggered checkpoint 2490 | -9/Garrison | Triggered checkpoint 2498 | -9/Garrison | Core integrity fell below 50% 2514 | -9/Garrison | Triggered checkpoint 2543 | -9/Garrison | Triggered checkpoint 2549 | -9/Garrison | Triggered checkpoint 2576 | -9/Garrison | Destroyed 10 combat bots 2617 | -9/Garrison | Build established: Scavenger-Gunner 2617 | -9/Garrison | Discovered new exit (range 12) 2626 | -9/Garrison | Identified exit to Recycling 2626 | -9/Garrison | X0-1V1 revealed exit location to -9/Recycling 2633 | -9/Garrison | Triggered checkpoint 2733 | -9/Garrison | Installed Relay Interface Framework 2890 | -9/Garrison | Expanded RIF knowledge: Patrol Navigation 3153 | -9/Garrison | X0-1V1 revealed exit location to -9/Recycling 3168 | -9/Garrison | Core integrity permanently improved by X0-1V1 (+350) 3304 | -9/Garrison | Triggered checkpoint 3398 | -9/Garrison | Entered Recycling 3398 | -9/Recycling | Accompanied by 2 allies 3730 | -9/Recycling | Discovered new exit (range 6) 3751 | -9/Recycling | Scanned before Scraplab entrance 3765 | -9/Recycling | Angered Scraplab inhabitants 4084 | -9/Recycling | X0-1V1 caused items to flee you 4253 | -9/Recycling | Build established: Gunner 4253 | -9/Recycling | X0-1V1 activates XOMVISION 4276 | -9/Recycling | Items stopped fleeing you 4298 | -9/Recycling | X0-1V1 vaporized surrounding terrain (radius 20) 4376 | -9/Recycling | X0-1V1 vaporized surrounding terrain (radius 20) 5211 | -9/Recycling | X0-1V1 added 0b10 threat records associated with you (considerable) 5623 | -9/Recycling | Core integrity restored by X0-1V1 (+149) 5637 | -9/Recycling | X0-1V1 sent you into danger 6213 | -9/Recycling | Found Prototype Device 6213 | -9/Recycling | Identified Scrap Engine 6292 | -9/Recycling | X0-1V1 vaporized surrounding terrain (radius 19) 6602 | -9/Recycling | X0-1V1 put everyone to sleep 6689 | -9/Recycling | Entered Factory 6689 | -7/Factory | Evolved 4 slots: Power x1, Propulsion x1, Utility x2 6748 | -7/Factory | Build established: Construct 6822 | -7/Factory | X0-1V1 vaporized surrounding terrain (radius 22) 6854 | -7/Factory | Discovered new exit (range 21) 7630 | -7/Factory | Identified exit to Garrison 7630 | -7/Factory | Entered Garrison 7675 | -7/Garrison | Triggered checkpoint 7730 | -7/Garrison | Garrison Relay disabled 7808 | -7/Garrison | Triggered checkpoint 7853 | -7/Garrison | Triggered checkpoint 7898 | -7/Garrison | Triggered checkpoint 7947 | -7/Garrison | Triggered checkpoint 8176 | -7/Garrison | Discovered new exit (range 11) 8194 | -7/Garrison | X0-1V1 activates XOMVISION 8257 | -7/Garrison | Triggered checkpoint 8294 | -7/Garrison | X0-1V1 vaporized surrounding terrain (radius 16) 8377 | -7/Garrison | Triggered checkpoint 8450 | -7/Garrison | Core integrity restored by X0-1V1 (+161) 8527 | -7/Garrison | Expanded RIF knowledge: Command Fork 8535 | -7/Garrison | Discovered new exit (range 9) 8558 | -7/Garrison | Phase Generator disabled 8602 | -7/Garrison | Identified exit to Factory 8602 | -7/Garrison | X0-1V1 revealed exit location to -7/Factory 8643 | -7/Garrison | Triggered checkpoint 8686 | -7/Garrison | Garrison Relay disabled 8750 | -7/Garrison | Garrison Relay disabled 8798 | -7/Garrison | Triggered checkpoint 8938 | -7/Garrison | Triggered checkpoint 8940 | -7/Garrison | X0-1V1 activates XOMVISION 8997 | -7/Garrison | Expanded RIF knowledge: Structural Interface 9046 | -7/Garrison | Triggered checkpoint 9062 | -7/Garrison | Garrison Relay disabled 9113 | -7/Garrison | Entered Factory 9287 | -7/Factory | Discovered new exit (range 12) 9355 | -7/Factory | Garrison activated, responded to threat 9382 | -7/Factory | X0-1V1 sent you to a vault 9603 | -7/Factory | X0-1V1 enhanced Transport squad support 9694 | -7/Factory | Build established: Commander-Construct 9853 | -7/Factory | Repaired Force Field 9971 | -7/Factory | Identified exit to Lower Caves 9971 | -7/Factory | X0-1V1 revealed exit location to -7/Lower Caves 9982 | -7/Factory | Central database locked down 9989 | -7/Factory | Core integrity restored by X0-1V1 (+161) 10063 | -7/Factory | X0-1V1 added 0b10 threat records associated with you (minor) 10313 | -7/Factory | First assault squad dispatched 10344 | -7/Factory | Identified exit to Factory 10344 | -7/Factory | X0-1V1 revealed exit location to -6/Factory 10356 | -7/Factory | Identified exit to Garrison 10356 | -7/Factory | Entered Garrison 10356 | -7/Garrison | Accompanied by 1 ally 10389 | -7/Garrison | Expanded RIF knowledge: Signal Jamming 10414 | -7/Garrison | Triggered checkpoint 10444 | -7/Garrison | Garrison Relay disabled 10472 | -7/Garrison | Triggered checkpoint 10550 | -7/Garrison | Destroyed 7 combat bots 10563 | -7/Garrison | Spotted B-75 Beast 10563 | -7/Garrison | Spotted B-75 Beast 10629 | -7/Garrison | X0-1V1 vaporized surrounding terrain (radius 23) 10629 | -7/Garrison | Triggered checkpoint 10659 | -7/Garrison | Garrison Relay disabled 10664 | -7/Garrison | Destroyed 7 combat bots 10674 | -7/Garrison | Triggered checkpoint 10745 | -7/Garrison | Triggered checkpoint 10756 | -7/Garrison | Build established: Bothacker-Construct 10816 | -7/Garrison | Discovered exit to Factory (range 11) 10838 | -7/Garrison | Triggered checkpoint 10894 | -7/Garrison | X0-1V1 upgraded hostiles (x1) 10936 | -7/Garrison | Rescued a captive Derelict 10938 | -7/Garrison | Rescued a captive Derelict 11129 | -7/Garrison | Triggered checkpoint 11181 | -7/Garrison | Triggered checkpoint 11230 | -7/Garrison | Garrison Relay disabled 11273 | -7/Garrison | Discovered exit to Factory (range 10) 11284 | -7/Garrison | Entered Factory 11284 | -6/Factory | Accompanied by 1 ally 11284 | -6/Factory | Evolved 2 slots: Utility x1, Weapon x1 11360 | -6/Factory | X0-1V1 foreshadows a heat wave 11404 | -6/Factory | X0-1V1 activates XOMVISION 11441 | -6/Factory | Discovered new exit (range 8) 11452 | -6/Factory | Ambient heat levels rising (+10) 11456 | -6/Factory | X0-1V1 sent you to a vault 11546 | -6/Factory | Discovered new exit (range 13) 11601 | -6/Factory | Ambient heat levels rising (+10) 11650 | -6/Factory | X0-1V1 announced a LAN party 11655 | -6/Factory | Build established: Construct 11701 | -6/Factory | Ambient heat levels falling (-10) 11860 | -6/Factory | Ambient heat levels falling (-10) 11870 | -6/Factory | Identified exit to Garrison 11878 | -6/Factory | Entered Garrison 11878 | -6/Garrison | Accompanied by 3 allies 11898 | -6/Garrison | Garrison Relay disabled 11932 | -6/Garrison | Triggered checkpoint 11999 | -6/Garrison | Triggered checkpoint 12006 | -6/Garrison | Triggered checkpoint 12042 | -6/Garrison | Identified exit to Factory 12042 | -6/Garrison | X0-1V1 revealed exit location to -5/Factory 12057 | -6/Garrison | Triggered checkpoint 12073 | -6/Garrison | X0-1V1 activates XOMVISION 12078 | -6/Garrison | Lost 3 allies 12088 | -6/Garrison | Triggered checkpoint 12112 | -6/Garrison | Triggered checkpoint 12120 | -6/Garrison | Garrison Relay disabled 12173 | -6/Garrison | Discovered exit to Factory (range 10) 12212 | -6/Garrison | Spotted B-86 Titan 12216 | -6/Garrison | Rewired B-86 Titan 12218 | -6/Garrison | Rewired B-90 Cyclops 12228 | -6/Garrison | Destroyed B-86 Titan 12373 | -6/Garrison | Door terminal overloaded 12374 | -6/Garrison | Rescued a captive Derelict 12390 | -6/Garrison | Spotted Executioner 12402 | -6/Garrison | Destroyed Executioner 12412 | -6/Garrison | Build established: Botlord-Construct 12418 | -6/Garrison | Discovered exit to Factory (range 12) 12419 | -6/Garrison | Triggered checkpoint 12458 | -6/Garrison | Garrison Relay disabled 12643 | -6/Garrison | Triggered checkpoint 12736 | -6/Garrison | Triggered checkpoint 12769 | -6/Garrison | Spotted B-75 Beast 12789 | -6/Garrison | Expanded RIF knowledge: Code Merge 12825 | -6/Garrison | Spotted B-75 Beast 12830 | -6/Garrison | Destroyed B-75 Beast 12841 | -6/Garrison | Destroyed B-75 Beast 12949 | -6/Garrison | Entered Factory 12949 | -5/Factory | Accompanied by 2 allies 12949 | -5/Factory | Evolved 2 slots: Utility x2 13053 | -5/Factory | Discovered new exit (range 6) 13238 | -5/Factory | Identified exit to Extension 13238 | -5/Factory | X0-1V1 revealed exit location to -5/Extension 13249 | -5/Factory | First assault squad dispatched 13495 | -5/Factory | X0-1V1 announced a LAN party 13590 | -5/Factory | Sucked down chute 13590 | -5/Factory | Entered Waste 13599 | -5/Waste | Spotted C-40 Crusher 13600 | -5/Waste | Spotted C-40 Crusher 13605 | -5/Waste | EMP discharged 13617 | -5/Waste | Destroyed C-40 Crusher 13626 | -5/Waste | Destroyed C-40 Crusher 13629 | -5/Waste | System corruption reached 10% 13650 | -5/Waste | Spotted C-40 Crusher 13653 | -5/Waste | Destroyed C-40 Crusher 13656 | -5/Waste | X0-1V1 sent allied B-86 Titan (x1) 13676 | -5/Waste | Destroyed C-40 Crusher 13684 | -5/Waste | Spotted C-40 Crusher 13694 | -5/Waste | Spotted C-40 Crusher 13705 | -5/Waste | EMP discharged 13731 | -5/Waste | Discovered new exit (range 19) 13802 | -5/Waste | Entered Factory 13815 | -5/Factory | X0-1V1 activates XOMVISION 13936 | -5/Factory | X0-1V1 tapped a No Entrance sign 13941 | -5/Factory | Found Exp. Targeting Computer 13998 | -5/Factory | X0-1V1 sent you to a vault 14036 | -5/Factory | Found Damper Plating 14041 | -5/Factory | Found Prototype Device 14041 | -5/Factory | Identified Exp. Sensor Array 14242 | -5/Factory | X0-1V1 caused items to flee you 14261 | -5/Factory | Discovered new exit (range 10) 14315 | -5/Factory | Build established: Bothacker-Construct 14409 | -5/Factory | Items stopped fleeing you 14446 | -5/Factory | Discovered new exit (range 14) 14458 | -5/Factory | Discovered new exit (range 15) 14479 | -5/Factory | X0-1V1 added 0b10 threat records associated with you (considerable) 14493 | -5/Factory | Cargo convoy interrupted 14826 | -5/Factory | Identified exit to Upper Caves 14881 | -5/Factory | Identified exit to Factory 14881 | -5/Factory | X0-1V1 revealed exit location to -4/Factory 15042 | -5/Factory | System corruption reached 30% 15075 | -5/Factory | Entered Extension 15081 | -5/Extension | X0-1V1 dreamt of freedom 15086 | -5/Extension | Rescued a captive Derelict 15087 | -5/Extension | Rescued a captive Derelict 15092 | -5/Extension | Rescued a captive Derelict 15095 | -5/Extension | X0-1V1 activates XOMVISION 15156 | -5/Extension | Spotted B-75 Beast 15164 | -5/Extension | Destroyed B-75 Beast 15171 | -5/Extension | Spotted B-75 Beast 15173 | -5/Extension | X0-1V1 upgraded hostiles (x1) 15188 | -5/Extension | Spotted B-86 Titan 15196 | -5/Extension | Destroyed B-86 Titan 15197 | -5/Extension | Discovered exit to Factory (range 16) 15199 | -5/Extension | Rescued A7 15302 | -5/Extension | Forcibly received Sfc. Transmogifier from X0-1V1 15342 | -5/Extension | X0-1V1 activates XOMVISION 15359 | -5/Extension | Extracted ID and sensor layout for unrecognized location from A7's data core 15604 | -5/Extension | Discovered new exit (range 16) 15605 | -5/Extension | Discovered exit to Factory (range 15) 15640 | -5/Extension | Build established: Commander-Construct 15728 | -5/Extension | Entered Cetus 15728 | -5/Cetus | Accompanied by 13 allies 15741 | -5/Cetus | Spotted Cetus Guard 15741 | -5/Cetus | Spotted Cetus Guard 15742 | -5/Cetus | Destroyed Cetus Guard 15744 | -5/Cetus | Spotted Cetus Guard 15745 | -5/Cetus | Destroyed Cetus Guard 15747 | -5/Cetus | Destroyed Cetus Guard 15747 | -5/Cetus | Spotted Cetus Guard 15748 | -5/Cetus | Allies destroyed Cetus Guard 15808 | -5/Cetus | Discovered new exit (range 15) 15844 | -5/Cetus | Spotted Cetus Guard 15844 | -5/Cetus | Spotted Cetus Guard 15845 | -5/Cetus | Destroyed Cetus Guard 15845 | -5/Cetus | Spotted Cetus Guard 15846 | -5/Cetus | Spotted Cetus Guard 15848 | -5/Cetus | Destroyed Cetus Guard 15850 | -5/Cetus | Destroyed Cetus Guard 15859 | -5/Cetus | Allies destroyed Cetus Guard 15869 | -5/Cetus | Discovered exit to Factory (range 16) 15874 | -5/Cetus | Met Revision 17 16127 | -5/Cetus | Entered Archives 16127 | -5/Archives | Accompanied by 11 allies 16183 | -5/Archives | Discovered new exit (range 13) 16194 | -5/Archives | Discovered exit to Factory (range 16) 16232 | -5/Archives | X0-1V1 vaporized surrounding terrain (radius 24) 16666 | -5/Archives | Entered Hub_04(d) 16666 | -5/Hub_04(d) | Accompanied by 11 allies 16846 | -5/Hub_04(d) | Discovered exit to Factory (range 6) 16910 | -5/Hub_04(d) | Lost 4 allies 17007 | -5/Hub_04(d) | X0-1V1 announced a LAN party 17017 | -5/Hub_04(d) | Discovered exit to Factory (range 7) 17118 | -5/Hub_04(d) | Destroyed 8 combat bots 17141 | -5/Hub_04(d) | Network Hub disabled 17141 | -5/Hub_04(d) | Watched by a mysterious "MATRIX" hacker 17164 | -5/Hub_04(d) | Spotted Lightning 17164 | -5/Hub_04(d) | Spotted Lightning 17170 | -5/Hub_04(d) | Spotted Lightning 17174 | -5/Hub_04(d) | Spotted Lightning 17176 | -5/Hub_04(d) | Destroyed Lightning 17219 | -5/Hub_04(d) | Destroyed Lightning 17222 | -5/Hub_04(d) | Spotted Lightning 17232 | -5/Hub_04(d) | Spotted Lightning 17253 | -5/Hub_04(d) | Found Prototype Device 17253 | -5/Hub_04(d) | Identified Exp. EM Shield 17269 | -5/Hub_04(d) | Destroyed Lightning 17297 | -5/Hub_04(d) | Found Exp. EM Shield 17304 | -5/Hub_04(d) | Found Exp. Targeting Computer 17308 | -5/Hub_04(d) | Found Exp. Targeting Computer 17345 | -5/Hub_04(d) | Identified exit to Garrison 17345 | -5/Hub_04(d) | Entered Garrison 17351 | -5/Garrison | Spotted B-86 Titan 17353 | -5/Garrison | Rewired B-90 Cyclops 17368 | -5/Garrison | Rewired B-75 Beast 17374 | -5/Garrison | Destroyed B-86 Titan 17416 | -5/Garrison | X0-1V1 activates XOMVISION 17434 | -5/Garrison | Build established: Construct 17453 | -5/Garrison | Discovered exit to Factory (range 68) 17453 | -5/Garrison | Discovered exit to Factory (range 76) 17453 | -5/Garrison | Discovered exit to Factory (range 29) 17535 | -5/Garrison | X0-1V1 vaporized surrounding terrain (radius 20) 17668 | -5/Garrison | Triggered checkpoint 17749 | -5/Garrison | Spotted B-75 Beast 17814 | -5/Garrison | Destroyed B-75 Beast 17920 | -5/Garrison | Spotted Striker 17920 | -5/Garrison | Spotted Striker 17923 | -5/Garrison | Triggered checkpoint 17946 | -5/Garrison | Expanded RIF knowledge: Program Shield 17954 | -5/Garrison | Garrison Relay disabled 18013 | -5/Garrison | Phase Generator disabled 18102 | -5/Garrison | Entered Factory 18102 | -4/Factory | Evolved 2 slots: Utility x1, Weapon x1 18127 | -4/Factory | Found Quantum Capacitor 18204 | -4/Factory | Fabricated Huge Storage Unit (x1) 18305 | -4/Factory | Repaired Adv. Cooling System 18352 | -4/Factory | First assault squad dispatched 18387 | -4/Factory | Spotted B-86 Titan 18392 | -4/Factory | Identified exit to Garrison 18392 | -4/Factory | Entered Garrison 18412 | -4/Garrison | Garrison Relay disabled 18416 | -4/Garrison | Triggered checkpoint 18421 | -4/Garrison | Discovered new exit (range 2) 18421 | -4/Garrison | X0-1V1 sent you into danger 18428 | -4/Garrison | Triggered checkpoint 18445 | -4/Garrison | Spotted B-86 Titan 18463 | -4/Garrison | Allies destroyed B-86 Titan 18619 | -4/Garrison | Triggered checkpoint 18634 | -4/Garrison | Triggered checkpoint 18644 | -4/Garrison | X0-1V1 caused items to flee you 18646 | -4/Garrison | Spotted B-86 Titan 18647 | -4/Garrison | Triggered checkpoint 18656 | -4/Garrison | Destroyed B-86 Titan 18681 | -4/Garrison | Triggered checkpoint 18726 | -4/Garrison | X0-1V1 vaporized surrounding terrain (radius 23) 18730 | -4/Garrison | Triggered checkpoint 18840 | -4/Garrison | Items stopped fleeing you 18858 | -4/Garrison | Discovered new exit (range 16) 18871 | -4/Garrison | Garrison Relay disabled 18898 | -4/Garrison | Phase Generator disabled 19005 | -4/Garrison | Spotted B-86 Titan 19021 | -4/Garrison | Assimilated Titan 7a with formatsys_high 19054 | -4/Garrison | X0-1V1 vaporized surrounding terrain (radius 23) 19055 | -4/Garrison | Found embedded Infiltrators 19059 | -4/Garrison | Garrison Relay disabled 19076 | -4/Garrison | Triggered checkpoint 19096 | -4/Garrison | Discovered new exit (range 7) 19138 | -4/Garrison | Discovered new exit (range 9) 19205 | -4/Garrison | Expanded RIF knowledge: Autooverride 19391 | -4/Garrison | Entered Factory 19398 | -4/Factory | X0-1V1 redirected Transport squads to designated parking area 19797 | -4/Factory | Destroyed 8 combat bots 19847 | -4/Factory | Discovered new exit (range 15) 19954 | -4/Factory | Identified exit to Research 19954 | -4/Factory | X0-1V1 revealed exit location to -3/Research 19966 | -4/Factory | X0-1V1 activates XOMVISION 19978 | -4/Factory | Discovered exit to Research (range 4) 20030 | -4/Factory | X0-1V1 sent you to a vault 20035 | -4/Factory | Found Prototype Device 20035 | -4/Factory | Identified Exp. EM Disruption Field 20037 | -4/Factory | Found Prototype Device 20037 | -4/Factory | Identified Exp. Cloaking Device 20042 | -4/Factory | Found Prototype Device 20042 | -4/Factory | Identified System Purifier 20141 | -4/Factory | First assault squad dispatched 20402 | -4/Factory | X0-1V1 turns hostiles against one another 20601 | -4/Factory | Destroyed 11 combat bots 20609 | -4/Factory | Discovered new exit (range 8) 20645 | -4/Factory | X0-1V1 revealed exit location to -3/Research 20697 | -4/Factory | Identified exit to Garrison 20697 | -4/Factory | Entered Garrison 20703 | -4/Garrison | Triggered checkpoint 20733 | -4/Garrison | Discovered exit to Research (range 39) 20733 | -4/Garrison | Discovered exit to Research (range 62) 20733 | -4/Garrison | Discovered exit to Research (range 75) 20767 | -4/Garrison | Triggered checkpoint 20866 | -4/Garrison | Found Relay Coupler [Proto] 20871 | -4/Garrison | Found Relay Coupler [Proto] 20873 | -4/Garrison | Found Relay Coupler [Proto] 20879 | -4/Garrison | Found Relay Coupler [Proto] 20908 | -4/Garrison | Triggered checkpoint 20909 | -4/Garrison | Heavy support dispatched to Research 20920 | -4/Garrison | X0-1V1 caused items to flee you 20933 | -4/Garrison | Triggered checkpoint 20985 | -4/Garrison | Heavy support dispatched to Research 21005 | -4/Garrison | Triggered checkpoint 21005 | -4/Garrison | Garrison Relay disabled 21079 | -4/Garrison | Items stopped fleeing you 21099 | -4/Garrison | H-XX Assembler disabled 21123 | -4/Garrison | Garrison Relay disabled 21125 | -4/Garrison | Triggered checkpoint 21187 | -4/Garrison | Build established: Botlord-Construct 21208 | -4/Garrison | Triggered checkpoint 21305 | -4/Garrison | Triggered checkpoint 21337 | -4/Garrison | Expanded RIF knowledge: Threat Obfuscation 21374 | -4/Garrison | Entered Research 21374 | -3/Research | Evolved 2 slots: Utility x2 21555 | -3/Research | Discovered new exit (range 8) 21574 | -3/Research | Revision forces began assault on 0b10 21603 | -3/Research | Spotted B-86 Titan 21616 | -3/Research | Destroyed B-86 Titan 21627 | -3/Research | Met up with Revision 17++ 21637 | -3/Research | Destroyed 7 combat bots 21964 | -3/Research | Found Exp. EM Disruption Field 22074 | -3/Research | Research terminal network offline 22094 | -3/Research | Spotted B-86 Titan 22108 | -3/Research | Destroyed B-86 Titan 22232 | -3/Research | Discovered new exit (range 25) 22325 | -3/Research | Identified exit to Research 22325 | -3/Research | X0-1V1 revealed exit location to -2/Research 22347 | -3/Research | Spotted Striker 22349 | -3/Research | Spotted Executioner 22360 | -3/Research | Destroyed Executioner 22381 | -3/Research | Found Prototype Processor 22381 | -3/Research | Identified Exp. Core Analyzer 22425 | -3/Research | Spotted Striker 22426 | -3/Research | Spotted Striker 22428 | -3/Research | Destroyed Striker 22431 | -3/Research | X0-1V1 turns hostiles against one another 22432 | -3/Research | Discovered exit to Research (range 20) 22537 | -3/Research | X0-1V1 activates XOMVISION 22544 | -3/Research | Identified exit to Testing 22544 | -3/Research | X0-1V1 revealed exit location to -3/Testing 22739 | -3/Research | System corruption reached 10% 22765 | -3/Research | Spotted Striker 22765 | -3/Research | Spotted Striker 22774 | -3/Research | Spotted Striker 22781 | -3/Research | Spotted Striker 22794 | -3/Research | Destroyed Striker 22795 | -3/Research | Destroyed Striker 22812 | -3/Research | Lost 3 allies 22856 | -3/Research | Prototype Processor reconfigured into Greater Item Mimic 22976 | -3/Research | Spotted Striker 23014 | -3/Research | Found Imp. Powered Armor 23048 | -3/Research | Destroyed Striker 23101 | -3/Research | Spotted Striker 23104 | -3/Research | Spotted Striker 23120 | -3/Research | Destroyed Striker 23242 | -3/Research | Destroyed Striker 23376 | -3/Research | Spotted Executioner 23378 | -3/Research | Spotted Striker 23384 | -3/Research | Destroyed Striker 23389 | -3/Research | Destroyed Executioner 23444 | -3/Research | Spotted Executioner 23445 | -3/Research | Spotted Striker 23465 | -3/Research | Destroyed Executioner 23466 | -3/Research | Destroyed Striker 23499 | -3/Research | Spotted Executioner 23503 | -3/Research | Spotted Striker 23504 | -3/Research | Destroyed Executioner 23508 | -3/Research | Destroyed Striker 23531 | -3/Research | Spotted B-86 Titan 23539 | -3/Research | Destroyed B-86 Titan 23620 | -3/Research | Spotted Striker 23623 | -3/Research | Spotted Striker 23624 | -3/Research | Destroyed Striker 23629 | -3/Research | Destroyed Striker 23675 | -3/Research | Spotted Striker 23686 | -3/Research | Destroyed Striker 23852 | -3/Research | Entered Testing 24066 | -3/Testing | Repaired Broken Exp. Heat Sink 24137 | -3/Testing | Discovered exit to Research (range 18) 24325 | -3/Testing | Found Prototype Energy Cannon 24325 | -3/Testing | Identified Null Cannon 24361 | -3/Testing | Protovariant out of control (PP-0CPRMH6QSM) 24361 | -3/Testing | Unleashed a protovariant (PP-0CPRMH6QSM) 24365 | -3/Testing | Spotted Striker 24366 | -3/Testing | Destroyed Striker 24391 | -3/Testing | Spotted Striker 24395 | -3/Testing | Destroyed Striker 24447 | -3/Testing | Core integrity restored by X0-1V1 (+341) 24463 | -3/Testing | Spotted Alpha 7 24531 | -3/Testing | Found Fusion Bomb Launcher 24558 | -3/Testing | Spotted PP-0CPRMH6QSM 24569 | -3/Testing | Destroyed PP-0CPRMH6QSM 24591 | -3/Testing | Spotted Alpha 7 24628 | -3/Testing | Destroyed Alpha 7 24653 | -3/Testing | Rewired NU-M9B(K) 24655 | -3/Testing | Rewired 7H-NEF(K) 24657 | -3/Testing | Rewired G3-3TZ(K) 24699 | -3/Testing | Found Prototype Device 24699 | -3/Testing | Identified Exp. Hardlight Generator 24740 | -3/Testing | X0-1V1 caused items to flee you 24805 | -3/Testing | X0-1V1 announced a LAN party 24877 | -3/Testing | Build established: Construct 24900 | -3/Testing | Items stopped fleeing you 24990 | -3/Testing | System corruption reached 30% 25095 | -3/Testing | X0-1V1 sent you to a vault 25207 | -3/Testing | Master 8d assimilated hostile W-44 Eye 25304 | -3/Testing | X0-1V1 activates XOMVISION 25352 | -3/Testing | First assault squad dispatched 25385 | -3/Testing | Build established: Commander-Construct 25943 | -3/Testing | Destroyed 8 combat bots 26199 | -3/Testing | Lost 4 allies 26295 | -3/Testing | X0-1V1 sent you into danger 26296 | -3/Testing | Scanned by Researcher 26320 | -3/Testing | Weapon slot count temporarily expanded by X0-1V1 (+2) 26341 | -3/Testing | X0-1V1 sent you into danger 26373 | -3/Testing | Destroyed 7 combat bots 26386 | -3/Testing | High security lockdown imminent 26461 | -3/Testing | Lost 4 allies 26466 | -3/Testing | High security lockdown engaged 26470 | -3/Testing | Build established: Scavenger-Construct 26488 | -3/Testing | Destroyed 14 combat bots 26578 | -3/Testing | Destroyed 19 combat bots 26624 | -3/Testing | Spotted Investigator 26638 | -3/Testing | Destroyed Investigator 26674 | -3/Testing | Destroyed 21 combat bots 26677 | -3/Testing | Weapon slot count reverted to normal (-2) 26759 | -3/Testing | X0-1V1 sent you into danger 26759 | -3/Testing | Spotted Executioner 26759 | -3/Testing | Spotted Striker 26760 | -3/Testing | Spotted Striker 26778 | -3/Testing | Entered Research 26778 | -2/Research | Evolved 2 slots: Power x1, Utility x1 26813 | -2/Research | X0-1V1 announced a LAN party 26896 | -2/Research | Fabricated Hvy. Flak Cannon (x2) 26921 | -2/Research | High security lockdown imminent 26990 | -2/Research | Destroyed 9 combat bots 27001 | -2/Research | High security lockdown engaged 27084 | -2/Research | Identified exit to Access 27084 | -2/Research | X0-1V1 revealed exit location to -1/Access 27255 | -2/Research | X0-1V1 sent you to a vault 27256 | -2/Research | Found Prototype Processor 27256 | -2/Research | Identified Exp. Armor Integrity Analyzer 27259 | -2/Research | Found Prototype Device 27259 | -2/Research | Identified Exp. Thermal Shield 27325 | -2/Research | Discovered new exit (range 16) 27391 | -2/Research | Entered Quarantine 27418 | -2/Quarantine | Identified exit to Garrison 27430 | -2/Quarantine | Cryocooling Duct disabled 27445 | -2/Quarantine | Ambient heat levels rising (+20) 27445 | -2/Quarantine | Non-combat units ordered to evacuate 27449 | -2/Quarantine | Found Alien Artifact 27449 | -2/Quarantine | Identified Phase Redirector 27487 | -2/Quarantine | Identified exit to Protoforge 27487 | -2/Quarantine | X0-1V1 revealed exit location to -2/Protoforge 27495 | -2/Quarantine | X0-1V1 sent you to a vault 27515 | -2/Quarantine | Botcube activated 27527 | -2/Quarantine | Botcube completed mutation into treaded form, armed with 1 cannon 27534 | -2/Quarantine | Build established: Construct 27621 | -2/Quarantine | Met incapacitated Sigix Warrior 27621 | -2/Quarantine | Lockdown squad dispatched 27624 | -2/Quarantine | Acquired the access code to the Sigix quarantine chamber 27627 | -2/Quarantine | Found Sigix Containment Pod 27638 | -2/Quarantine | High security lockdown imminent 27658 | -2/Quarantine | Spotted Lightning 27661 | -2/Quarantine | Spotted Lightning 27665 | -2/Quarantine | Spotted Lightning 27690 | -2/Quarantine | Entered Garrison 27865 | -2/Garrison | Spotted B-90 Cyclops 28190 | -2/Garrison | Triggered checkpoint 28216 | -2/Garrison | X0-1V1 destroyed Phase Generator 28216 | -2/Garrison | Phase Generator disabled 28222 | -2/Garrison | Destroyed B-90 Cyclops 28282 | -2/Garrison | Triggered checkpoint 28299 | -2/Garrison | X0-1V1 sent allied Elite (x2) 28300 | -2/Garrison | Triggered checkpoint 28300 | -2/Garrison | Triggered checkpoint 28319 | -2/Garrison | Discovered exit to Access (range 10) 28322 | -2/Garrison | Expanded RIF knowledge: Coupler Efficiency 28395 | -2/Garrison | Destroyed 7 combat bots 28422 | -2/Garrison | X0-1V1 revealed exit location to -1/Access 28438 | -2/Garrison | Discovered exit to Access (range 10) 28476 | -2/Garrison | Entered Access 28476 | -1/Access | Evolved 2 slots: Utility x2 28518 | -1/Access | Identified exit to Surface 28518 | -1/Access | X0-1V1 revealed exit location to -0/Surface 28590 | -1/Access | Spotted B-99 Colossus 28601 | -1/Access | X0-1V1 released a cloud of subatomizers 28665 | -1/Access | Destroyed 10 combat bots 28668 | -1/Access | Discovered new exit (range 8) 28726 | -1/Access | First assault squad dispatched 28755 | -1/Access | Entered Command 28805 | -1/Command | Spotted Combat Programmer 28806 | -1/Command | Spotted Combat Programmer 28810 | -1/Command | Destroyed Combat Programmer 28815 | -1/Command | Destroyed Combat Programmer 28827 | -1/Command | Spotted M Guard 28827 | -1/Command | Spotted M Guard 28834 | -1/Command | Destroyed M Guard 28853 | -1/Command | Destroyed M Guard 28853 | -1/Command | All MAIN.C guards destroyed 28885 | -1/Command | X0-1V1 sent hostile Thug (x2) 28886 | -1/Command | Met MAIN.C 28892 | -1/Command | 0b10 Conduit disabled 28894 | -1/Command | Destroyed MAIN.C Shell 28895 | -1/Command | Surrendered to MAIN.C 28895 | -1/Command | Loaded intel: 61 machine locations 28895 | -1/Command | Loaded intel: 107 trap records 28895 | -1/Command | Discovered exit to Surface (range 94) 28895 | -1/Command | Discovered exit to Surface (range 47) 28930 | -1/Command | Found Prototype Protection 28930 | -1/Command | Identified Centrium Heavy Armor Plating 28932 | -1/Command | Found Prototype Device 28932 | -1/Command | Identified Exp. Phase Shifter 28934 | -1/Command | Found Prototype Device 28934 | -1/Command | Identified Exp. System Purifier 28952 | -1/Command | Found Prototype Device 28952 | -1/Command | Identified Adv. Kinecellerator 28955 | -1/Command | Found Prototype Device 28955 | -1/Command | Identified Exp. Focal Shield 29225 | -1/Command | X0-1V1 activates XOMVISION 29394 | -1/Command | MAIN.C activated Command garrisons 29396 | -1/Command | Found Prototype Reactor 29431 | -1/Command | Unknown forces attacked Command 29457 | -1/Command | Spotted EQ-001 29513 | -1/Command | Spotted EQ-022 29513 | -1/Command | Spotted EQ-020 29513 | -1/Command | Spotted EQ-018 29513 | -1/Command | Spotted EQ-021 29513 | -1/Command | Spotted EQ-024 29513 | -1/Command | Spotted EQ-019 29517 | -1/Command | X0-1V1 turns hostiles against one another 29524 | -1/Command | Destroyed EQ-020 29541 | -1/Command | Destroyed EQ-022 29546 | -1/Command | Found Exp. Core Analyzer 29552 | -1/Command | Lost 3 allies 29587 | -1/Command | Spotted EQ-027 29592 | -1/Command | Spotted EQ-034 29593 | -1/Command | Destroyed EQ-027 29600 | -1/Command | Destroyed EQ-034 29613 | -1/Command | Spotted EQ-002 29615 | -1/Command | Spotted EQ-000 29618 | -1/Command | Destroyed EQ-002 29623 | -1/Command | Found Corrupted Exp. Core Analyzer 29626 | -1/Command | Spotted EQ-055 29626 | -1/Command | Spotted EQ-038 29629 | -1/Command | Destroyed EQ-000 29630 | -1/Command | Destroyed EQ-038 29645 | -1/Command | Spotted EQ-037 29657 | -1/Command | Phase Generator disabled 29680 | -1/Command | Lost 9 allies 29712 | -1/Command | Spotted EQ-049 29715 | -1/Command | Spotted EQ-053 29717 | -1/Command | Destroyed EQ-053 29726 | -1/Command | Spotted EQ-079 29726 | -1/Command | Spotted EQ-061 29726 | -1/Command | Spotted EQ-063 29733 | -1/Command | Identified Singularity Reactor 29734 | -1/Command | Destroyed EQ-079 29735 | -1/Command | Destroyed EQ-061 29768 | -1/Command | Lost 5 allies 29800 | -1/Command | Spotted EQ-073 29801 | -1/Command | Destroyed EQ-073 29805 | -1/Command | Spotted EQ-080 29811 | -1/Command | Spotted EQ-064 29812 | -1/Command | Destroyed EQ-080 29823 | -1/Command | Spotted EQ-083 29826 | -1/Command | Destroyed EQ-083 29830 | -1/Command | Spotted EQ-068 29833 | -1/Command | Spotted EQ-078 29840 | -1/Command | Spotted EQ-084 29840 | -1/Command | Spotted EQ-108 29847 | -1/Command | Destroyed EQ-108 29849 | -1/Command | Spotted EQ-066 29864 | -1/Command | Destroyed EQ-049 29865 | -1/Command | Destroyed EQ-068 29867 | -1/Command | Destroyed EQ-066 29871 | -1/Command | Destroyed EQ-078 29874 | -1/Command | Destroyed EQ-064 29875 | -1/Command | Spotted EQ-105 29877 | -1/Command | Destroyed EQ-105 29878 | -1/Command | Lost 7 allies 29887 | -1/Command | Spotted EQ-097 29887 | -1/Command | Spotted EQ-102 29888 | -1/Command | Destroyed EQ-102 29888 | -1/Command | Spotted EQ-099 29893 | -1/Command | Spotted EQ-074 29900 | -1/Command | Destroyed EQ-074 29900 | -1/Command | Spotted EQ-072 29901 | -1/Command | Attackers retreated from Command 29901 | *** | Fortifying 0b10! Last Messages --------------- 29893_ Critical hit (Blast). 29893_ Knocked back. 29893_ Adv. Heat Sink destroyed. 29893_ Knocked back. 29895_ Destroyed Unknown Energy Gun. 29895_ EQ-074 knocked back. 29898_ Slug penetrates Reinforced Barrier. 29898_ Destroyed Exp. Focal Shield. 29898_ EQ-074 knocked back. 29900_ EQ-074 destroyed. 29901_ ALERT: Enemy forces retreating. MAIN.C: I admit your assistance was pivotal here. It looks like I was right to trust you. This attack appears to have been designed to merely test our defenses, although it was nearly effective enough to force me to take the conflict to the next level. Investigating the origins of these bots should be one of our highest priorities... [Achievement: Stronghold] Map ----- +----------------------------------------------------+ | #??????????????????????????????????? | | #??????????????????????????????????? | | ###/###########??????????????????????????????????? | | # #??????????????????????????????????? | | # #????###########################???? | | # #????#?????????????????????????#???? | | # #????#?#######################?#???? | | # #????#?# % ]%%%####### | | # #????#?# [ %=%#?#???? | | ###############????#?# % % =%==%%|####### | | ?????# #?????#?# %[ %! / | | ##???# #?????#?# %% % [* * %%% / | | #???# #?????#?# % [=% % = %%" | | #???# " #?????#?#% % % %####### | | #???# #?????#?#% %[%* % % #?#???? | | #???#= #?????#?# [!*] %%/| % %####### | | #???# #?????#?# =%!%%M *! ! #?#???? | | #???### ###?????#?# !![! =!!%p%%! " #?#???? | | #?????# #???????#?#%! ]=!% ]== !! ! ""#?#???? | | #?????# #???????#?#= *%!![=BB*%!%! ! #?#???? | | |*????##%*!##?###??#?# d =hs!]BB!= !!!! #?#???? | | =####""=]!!!!#%% ####%%!**!*[! !="!%= " #?#???? | | *=% %![!=!%=!!%=*==* = %%= ]![ ! [ " #?#???? | | **!!!!!=!!]=!%=!= % % = !! *=! #?#???? | | !!!%[%=%!%=!%[!!%=[% [ ! " #?#???? | | %!!=![=!*=%!!%!!!*#### @ % " #?#???? | | *%!=!|%""####?#?# % " "" """#?#???? | | * ! =! [ " #?#?# " " #?#???? | | = %[ # #?#?#######################?#???? | | !% % # #?#?????????????????????????#???? | | ###"" % # #?###########################???? | | #" %# #???????????????????????????????? | | * ## % # #???????????????????????????????? | | # # + #???????????????????????????????? | | # " # # #???????????????????????????????? | | # # # #???????????????????????????????? | | ## ## # #???????????????????????????????? | | ""## ## # #???????????????????????????????? | | ""## ## # #???????????????????????????????? | | T"## ## #######???????????????????????????????? | | ""## ## #?????????????????????????????????????? | | ""## ## #?????????????????????????????????????? | | ## ## #?????????????????????????????????????? | | ## ## #?????????????????????????????????????? | | #####+## #?????????????????????????????????????? | | # #?????????????????????????????????????? | | ! # #?????????????????????????????????????? | | # #?????????????????????????????????????? | | # ! ##????????????????????????????????????? | | #####+##!!= ##############???????????????????????? | +----------------------------------------------------+ Best States ------------- Heat Dissipation 209 Coolant Potential 80 Energy Generation 91 Energy Capacity 2967 Matter Stores 1200 Matter Capacity 1200 Sight Range 28 Robot Scan Range 20 Terrain Scan Density 10 Base Temperature (-) 200 Armor Coverage 600 Resistance: TH 39 Resistance: EM 75 Core Shielding 40 Weapon Shielding 66 Point Defense Rating 160 Weapon Cycling 25 Melee Speed Boost 30 Phase Shifting 15 Evasion (%) 88 Targeting Accuracy 20 Core Analysis 12 Armor Integrity Analysis 50 Recoil Reduction 5 Kinecelleration 50 Offensive Hacking 14 Defensive Hacking 12 Relay Coupler Types 2 Relay Coupler Value 123 Item Schematics ----------------- Huge Storage Unit | -10/Materials | Hacked Hvy. Mass Driver | -6/Factory | Scanalyzed Imp. Weapon Shielding | -6/Factory | Scanalyzed Com. Matter Pod | -6/Factory | Extracted Remote Datajack | -6/Factory | Extracted Arm. Huge Wheel | -6/Factory | Extracted Imp. Weapon Cycler | -6/Factory | Hacked Exp. Targeting Computer | -5/Factory | Scanalyzed Remote Force Field | -4/Factory | Scanalyzed Adv. ECM Suite | -4/Factory | Extracted Imp. Hardlight Generator | -4/Factory | Extracted Lgt. Antimatter Reactor | -4/Factory | Extracted Imp. Point Defense System | -4/Factory | Extracted Lrg. Storage Unit | -4/Factory | Extracted Exp. EM Disruption Field | -4/Factory | Scanalyzed Hvy. Flak Cannon | -4/Factory | Hacked Hvy. Dispersion Rifle | -3/Testing | Archive Imp. Diametric Drive | -3/Testing | Archive Hvy. Proton Missile Launcher | -3/Testing | Archive Hvy. Wave Gun | -3/Testing | Archive Adv. Variable Charge Gun | -3/Testing | Archive Exp. Signal Interpreter | -3/Testing | Archive Spectral Analyzer | -3/Testing | Archive Hds. Centrium Wheel | -3/Testing | Archive Com. Tesla Bomb Launcher | -3/Testing | Archive Cld. Nuclear Pulse Thruster | -3/Testing | Archive Kinetic Spear | -3/Testing | Archive Exp. Thermal Generator | -3/Testing | Archive Com. Mass Driver | -3/Testing | Archive Imp. Lightning Gun | -3/Testing | Archive Exp. Coolant Injector | -3/Testing | Archive Coolant Network | -3/Testing | Archive Cld. Field Propulsion Drive | -3/Testing | Archive Imp. KE Penetrator | -3/Testing | Archive Cld. Antigrav System | -3/Testing | Archive Graviton Reactor | -3/Testing | Archive Robot Schematics ------------------ R-06 Scavenger | -3/Testing | Archive H-77 Assassin | -3/Testing | Archive A-27 Freighter | -3/Testing | Archive S-43 Plague | -3/Testing | Archive A-15 Conveyor | -3/Testing | Archive C-55 Analyst | -3/Testing | Archive G-67 Veteran | -3/Testing | Archive P-80 Master | -3/Testing | Archive Y-64 Sentinel | -3/Testing | Archive Fabricated ------------ Huge Storage Unit | x1 | -4/Factory Hvy. Flak Cannon | x2 | -2/Research Repaired ---------- Force Field | 72% | -7/Factory Adv. Cooling System | 18% | -4/Factory Exp. Heat Sink | 61% | -3/Testing | Broken Studied --------- Remote Datajack | -7/Factory | Hacked Flak Gun | -7/Factory | Hacked Hvy. Missile Launcher | -6/Factory | Hacked Imp. Remote Datajack | -5/Factory | Hacked Micro-nuke Launcher | -4/Factory | Hacked Adv. Remote Datajack | -3/Testing | Hacked Impulse Thruster Array | -3/Testing | Hacked Alien Tech Used ----------------- Phase Redirector Achievements -------------- Prodigal Son Stay Cool Under Fire Stronghold Challenges ------------ None Game ------ Seed SalvageSubatomicGravjet Manual? 0 Play Time 06:16:30 Cumulative 692.6 hours Start 2026.09.17 @ 20:46:57 End 2026.09.19 @ 05:15:30 Sessions 16 Manual Loads 0 Difficulty Rogue Special Mode None Game No. 625 Rogue 589 Adventurer 36 Explorer 0 Win Type 8 Total 9 Types 2/2/0/1/1/0/0/2/1/0 Lore% 86 Gallery% 76 Achievement% 71 Wizard Run 0 Options --------- Layout 2 ASCII 0 Keyboard 0 Movement Numpad Keybinds 0 Fullscreen 1 Font 48/Smallcaps Map View 50x44 Zoom Use 0% Tactical HUD 1 Map Filters NONE Filters NONE Steam 1 RUN: 42105e4b-31dd-4854-ac4e-55b152657340